Workbook

Sheet DeepSeek蒸馏模型
A1: 模型 | B1: 卡数 | C1: 数据类型 | D1: vLLM版本 | E1: V0/V1 Engine | F1: Prefix Caching开启 | G1: 输入长度 (tokens) | H1: 输出长度 (tokens) | I1: 并发数 | J1: 平均首字延时 TTFT(ms) | K1: 平均生成时间TPOT(ms) | L1: 生成吞吐量 (tokens/s) | M1: 总吞吐量(tokens/s) | N1: 总耗时 （s) | O1: 单并发Output吞吐 (tokens/s） | P1: 单并发Decode吞吐（tokens/s) | Q1: 镜像 | R1: 硬件平台 | S1: 数据日期 | T1: 数据提供者 | U1: 备注
A2: DeepSeek-R1-Distill-Qwen-14B | B2: 1 | C2: float16 | D2: 0.9.2 | E2: V0 | F2: 否 | G2: 512 | H2: 512 | I2: 1 | J2: 128.66 | K2: 36.7 | L2: 27.11 | M2: 54.17 | N2: 18.89 | O2: =L2/I2 -> 27.11 | P2: =1000/K2 -> 27.2479564 | Q2: vllm:0.9.2-ubuntu22.04-dtk25.04.2-1226-das1.7-py3.10-20251226 | R2: Hygon C86 7490 64-core Processor*2 /DDR5 4800 64G*24 /480G 2.5 SATA 6Gb R SSD*2 /960G 2.5 SATA 6Gb R SSD*4/7.68T*4/BCM 9560-8i Tri-Mode RAID x1/双口1G RJ45网卡x1/DCU K100-AI x8(120CU)/MLX MCX653105A-HDAT 1-port 200G HDR QSFP56 HCA*1/2700W电源模块*4 | S2: 2026.02 | T2: 刘玉升
A3: DeepSeek-R1-Distill-Qwen-14B | B3: 1 | C3: float16 | D3: 0.9.2 | E3: V0 | F3: 否 | G3: 512 | H3: 512 | I3: 4 | J3: 304.35 | K3: 41.11 | L3: 96.08 | M3: 191.97 | N3: 21.32 | O3: 24.02 | P3: 24.32498176 | S3: 2026.02 | T3: 刘玉升
A4: DeepSeek-R1-Distill-Qwen-14B | B4: 1 | C4: float16 | D4: 0.9.2 | E4: V0 | F4: 否 | G4: 512 | H4: 512 | I4: 8 | J4: 553.11 | K4: 45.18 | L4: 173.25 | M4: 346.11 | N4: 23.64 | O4: 21.65625 | P4: 22.13368747 | S4: 2026.02 | T4: 刘玉升
A5: DeepSeek-R1-Distill-Qwen-14B | B5: 1 | C5: float16 | D5: 0.9.2 | E5: V0 | F5: 否 | G5: 512 | H5: 512 | I5: 16 | J5: 897.93 | K5: 60 | L5: 259.55 | M5: 518.53 | N5: 31.56 | O5: 16.221875 | P5: 16.66666667 | S5: 2026.02 | T5: 刘玉升
A6: DeepSeek-R1-Distill-Qwen-14B | B6: 1 | C6: float16 | D6: 0.9.2 | E6: V0 | F6: 否 | G6: 512 | H6: 512 | I6: 32 | J6: 2131.83 | K6: 61.88 | L6: 485.27 | M6: 969.54 | N6: 33.76 | O6: 15.1646875 | P6: 16.16031028 | S6: 2026.02 | T6: 刘玉升
A7: DeepSeek-R1-Distill-Qwen-14B | B7: 1 | C7: float16 | D7: 0.9.2 | E7: V0 | F7: 否 | G7: 512 | H7: 512 | I7: 64 | J7: 4313.35 | K7: 107.45 | L7: 553.14 | M7: 1105.17 | N7: 59.24 | O7: 8.6428125 | P7: 9.306654258 | S7: 2026.02 | T7: 刘玉升
A8: DeepSeek-R1-Distill-Qwen-14B | B8: 1 | C8: float16 | D8: 0.9.2 | E8: V0 | F8: 否 | G8: 512 | H8: 512 | I8: 128 | J8: 6725.77 | K8: 188.95 | L8: 634.36 | M8: 1267.28 | N8: 103.31 | O8: 4.9559375 | P8: 5.292405398 | S8: 2026.02 | T8: 刘玉升
A9: DeepSeek-R1-Distill-Qwen-14B | B9: 1 | C9: float16 | D9: 0.9.2 | E9: V0 | F9: 否 | G9: 1024 | H9: 1024 | I9: 1 | J9: 191.01 | K9: 36.69 | L9: 27.15 | M9: 54.26 | N9: 37.72 | O9: 27.15 | P9: 27.25538294 | S9: 2026.02 | T9: 刘玉升
A10: DeepSeek-R1-Distill-Qwen-14B | B10: 1 | C10: float16 | D10: 0.9.2 | E10: V0 | F10: 否 | G10: 1024 | H10: 1024 | I10: 4 | J10: 553.84 | K10: 41.43 | L10: 95.38 | M10: 190.67 | N10: 42.94 | O10: 23.845 | P10: 24.13709872 | S10: 2026.02 | T10: 刘玉升
A11: DeepSeek-R1-Distill-Qwen-14B | B11: 1 | C11: float16 | D11: 0.9.2 | E11: V0 | F11: 否 | G11: 1024 | H11: 1024 | I11: 8 | J11: 876.33 | K11: 45.69 | L11: 172.03 | M11: 343.86 | N11: 47.62 | O11: 21.50375 | P11: 21.88662727 | S11: 2026.02 | T11: 刘玉升
A12: DeepSeek-R1-Distill-Qwen-14B | B12: 1 | C12: float16 | D12: 0.9.2 | E12: V0 | F12: 否 | G12: 1024 | H12: 1024 | I12: 16 | J12: 1951.52 | K12: 60.4 | L12: 257 | M12: 513.44 | N12: 63.75 | O12: 16.0625 | P12: 16.55629139 | S12: 2026.02 | T12: 刘玉升
A13: DeepSeek-R1-Distill-Qwen-14B | B13: 1 | C13: float16 | D13: 0.9.2 | E13: V0 | F13: 否 | G13: 1024 | H13: 1024 | I13: 32 | J13: 4300.65 | K13: 63 | L13: 476.59 | M13: 952.41 | N13: 68.76 | O13: 14.8934375 | P13: 15.87301587 | S13: 2026.02 | T13: 刘玉升
A14: DeepSeek-R1-Distill-Qwen-14B | B14: 1 | C14: float16 | D14: 0.9.2 | E14: V0 | F14: 否 | G14: 1024 | H14: 1024 | I14: 64 | J14: 6573.38 | K14: 110.06 | L14: 549.87 | M14: 1097.34 | N14: 119.18 | O14: 8.59171875 | P14: 9.085953116 | S14: 2026.02 | T14: 刘玉升
A15: DeepSeek-R1-Distill-Qwen-14B | B15: 1 | C15: float16 | D15: 0.9.2 | E15: V0 | F15: 否 | G15: 1024 | H15: 1024 | I15: 128 | J15: 11172.87 | K15: 190.15 | L15: 508.2 | M15: 1014.64 | N15: 257.91 | O15: 3.9703125 | P15: 5.259006048 | S15: 2026.02 | T15: 刘玉升
A16: DeepSeek-R1-Distill-Qwen-14B | B16: 1 | C16: float16 | D16: 0.9.2 | E16: V0 | F16: 否 | G16: 2048 | H16: 2048 | I16: 1 | J16: 346.68 | K16: 36.79 | L16: 27.07 | M16: 54.12 | N16: 75.67 | O16: 27.07 | P16: 27.18129927 | S16: 2026.02 | T16: 刘玉升
A17: DeepSeek-R1-Distill-Qwen-14B | B17: 1 | C17: float16 | D17: 0.9.2 | E17: V0 | F17: 否 | G17: 2048 | H17: 2048 | I17: 4 | J17: 854.28 | K17: 41.88 | L17: 94.6 | M17: 189.16 | N17: 86.59 | O17: 23.65 | P17: 23.87774594 | S17: 2026.02 | T17: 刘玉升
A18: DeepSeek-R1-Distill-Qwen-14B | B18: 1 | C18: float16 | D18: 0.9.2 | E18: V0 | F18: 否 | G18: 2048 | H18: 2048 | I18: 8 | J18: 1992.42 | K18: 46.13 | L18: 169.93 | M18: 339.27 | N18: 96.42 | O18: 21.24125 | P18: 21.6778669 | S18: 2026.02 | T18: 刘玉升
A19: DeepSeek-R1-Distill-Qwen-14B | B19: 1 | C19: float16 | D19: 0.9.2 | E19: V0 | F19: 否 | G19: 2048 | H19: 2048 | I19: 16 | J19: 4259.8 | K19: 60.88 | L19: 254.25 | M19: 506.68 | N19: 128.88 | O19: 15.890625 | P19: 16.42575558 | S19: 2026.02 | T19: 刘玉升
A20: DeepSeek-R1-Distill-Qwen-14B | B20: 1 | C20: float16 | D20: 0.9.2 | E20: V0 | F20: 否 | G20: 2048 | H20: 2048 | I20: 32 | J20: 6678.49 | K20: 64.63 | L20: 471.5 | M20: 940.82 | N20: 138.99 | O20: 14.734375 | P20: 15.4726907 | S20: 2026.02 | T20: 刘玉升
A21: DeepSeek-R1-Distill-Qwen-14B | B21: 1 | C21: float16 | D21: 0.9.2 | E21: V0 | F21: 否 | G21: 2048 | H21: 2048 | I21: 64 | J21: 11301.06 | K21: 116.33 | L21: 397.95 | M21: 793.97 | N21: 329.37 | O21: 6.21796875 | P21: 8.596234849 | S21: 2026.02 | T21: 刘玉升
A22: DeepSeek-R1-Distill-Qwen-14B | B22: 1 | C22: float16 | D22: 0.9.2 | E22: V0 | F22: 否 | G22: 2048 | H22: 2048 | I22: 128 | J22: 152296.93 | K22: 120.16 | L22: 441.59 | M22: 881.53 | N22: 593.64 | O22: 3.449921875 | P22: 8.322237017 | S22: 2026.02 | T22: 刘玉升
A23: DeepSeek-R1-Distill-Qwen-14B | B23: 1 | C23: float16 | D23: 0.9.2 | E23: V0 | F23: 否 | G23: 4096 | H23: 1024 | I23: 1 | J23: 593.75 | K23: 36.88 | L23: 26.72 | M23: 133.58 | N23: 38.32 | O23: 26.72 | P23: 27.11496746 | S23: 2026.02 | T23: 刘玉升
A24: DeepSeek-R1-Distill-Qwen-14B | B24: 1 | C24: float16 | D24: 0.9.2 | E24: V0 | F24: 否 | G24: 4096 | H24: 1024 | I24: 4 | J24: 1886.68 | K24: 43.64 | L24: 88.04 | M24: 439.92 | N24: 46.53 | O24: 22.01 | P24: 22.9147571 | S24: 2026.02 | T24: 刘玉升
A25: DeepSeek-R1-Distill-Qwen-14B | B25: 1 | C25: float16 | D25: 0.9.2 | E25: V0 | F25: 否 | G25: 4096 | H25: 1024 | I25: 8 | J25: 4192.95 | K25: 49.82 | L25: 148.51 | M25: 742.26 | N25: 55.16 | O25: 18.56375 | P25: 20.07226014 | S25: 2026.02 | T25: 刘玉升
A26: DeepSeek-R1-Distill-Qwen-14B | B26: 1 | C26: float16 | D26: 0.9.2 | E26: V0 | F26: 否 | G26: 4096 | H26: 1024 | I26: 16 | J26: 6834.12 | K26: 69.22 | L26: 210.98 | M26: 1052.74 | N26: 77.66 | O26: 13.18625 | P26: 14.44669171 | S26: 2026.02 | T26: 刘玉升
A27: DeepSeek-R1-Distill-Qwen-14B | B27: 1 | C27: float16 | D27: 0.9.2 | E27: V0 | F27: 否 | G27: 4096 | H27: 1024 | I27: 32 | J27: 11715.21 | K27: 81.52 | L27: 317.49 | M27: 1585.65 | N27: 103.21 | O27: 9.9215625 | P27: 12.26692836 | S27: 2026.02 | T27: 刘玉升
A28: DeepSeek-R1-Distill-Qwen-14B | B28: 1 | C28: float16 | D28: 0.9.2 | E28: V0 | F28: 否 | G28: 4096 | H28: 1024 | I28: 64 | J28: 59627.96 | K28: 98.06 | L28: 311 | M28: 1552.66 | N28: 210.73 | O28: 4.859375 | P28: 10.19783806 | S28: 2026.02 | T28: 刘玉升
A29: DeepSeek-R1-Distill-Qwen-14B | B29: 1 | C29: float16 | D29: 0.9.2 | E29: V0 | F29: 否 | G29: 4096 | H29: 1024 | I29: 128 | J29: 168097.45 | K29: 100.58 | L29: 304.63 | M29: 1521.04 | N29: 430.26 | O29: 2.379921875 | P29: 9.94233446 | S29: 2026.02 | T29: 刘玉升
A30: DeepSeek-R1-Distill-Qwen-14B | B30: 1 | C30: float16 | D30: 0.9.2 | E30: V0 | F30: 否 | G30: 16384 | H30: 1024 | I30: 1 | J30: 3043.93 | K30: 37.18 | L30: 24.93 | M30: 423.75 | N30: 41.08 | O30: 24.93 | P30: 26.89618074 | S30: 2026.02 | T30: 刘玉升
A31: DeepSeek-R1-Distill-Qwen-14B | B31: 1 | C31: float16 | D31: 0.9.2 | E31: V0 | F31: 否 | G31: 16384 | H31: 1024 | I31: 4 | J31: 8350.62 | K31: 55.18 | L31: 63.21 | M31: 1074.44 | N31: 64.8 | O31: 15.8025 | P31: 18.12250816 | S31: 2026.02 | T31: 刘玉升
A32: DeepSeek-R1-Distill-Qwen-14B | B32: 1 | C32: float16 | D32: 0.9.2 | E32: V0 | F32: 否 | G32: 16384 | H32: 1024 | I32: 8 | J32: 14799.76 | K32: 74.13 | L32: 90.38 | M32: 1536.33 | N32: 90.64 | O32: 11.2975 | P32: 13.48981519 | S32: 2026.02 | T32: 刘玉升
A33: DeepSeek-R1-Distill-Qwen-14B | B33: 1 | C33: float16 | D33: 0.9.2 | E33: V0 | F33: 否 | G33: 16384 | H33: 1024 | I33: 16 | J33: 62266 | K33: 80.4 | L33: 85.33 | M33: 1450.52 | N33: 192.01 | O33: 5.333125 | P33: 12.43781095 | S33: 2026.02 | T33: 刘玉升
A34: DeepSeek-R1-Distill-Qwen-14B | B34: 1 | C34: float16 | D34: 0.9.2 | E34: V0 | F34: 否 | G34: 16384 | H34: 1024 | I34: 32 | J34: 156791.83 | K34: 84.53 | L34: 82.95 | M34: 1410.05 | N34: 395.04 | O34: 2.5921875 | P34: 11.83011948 | S34: 2026.02 | T34: 刘玉升
A35: DeepSeek-R1-Distill-Qwen-14B | B35: 1 | C35: float16 | D35: 0.9.2 | E35: V0 | F35: 否 | G35: 16384 | H35: 1024 | I35: 64 | J35: 346458.03 | K35: 88.19 | L35: 82.45 | M35: 1401.64 | N35: 794.82 | O35: 1.28828125 | P35: 11.3391541 | S35: 2026.02 | T35: 刘玉升
A36: DeepSeek-R1-Distill-Qwen-14B | B36: 1 | C36: float16 | D36: 0.9.2 | E36: V0 | F36: 否 | G36: 16384 | H36: 1024 | I36: 128 | J36: 728732.68 | K36: 88.21 | L36: 84.36 | M36: 1434.07 | N36: 1553.69 | O36: 0.6590625 | P36: 11.33658315 | S36: 2026.02 | T36: 刘玉升
A37: DeepSeek-R1-Distill-Qwen-14B | B37: 2 | C37: float16 | D37: 0.9.2 | E37: V0 | F37: 否 | G37: 512 | H37: 512 | I37: 1 | J37: 100.27 | K37: 26.16 | L37: 38.01 | M37: 75.95 | N37: 13.47 | O37: 38.01 | P37: 38.22629969 | S37: 2026.02 | T37: 刘玉升
A38: DeepSeek-R1-Distill-Qwen-14B | B38: 2 | C38: float16 | D38: 0.9.2 | E38: V0 | F38: 否 | G38: 512 | H38: 512 | I38: 4 | J38: 230.11 | K38: 31.12 | L38: 126.96 | M38: 253.66 | N38: 16.13 | O38: 31.74 | P38: 32.13367609 | S38: 2026.02 | T38: 刘玉升
A39: DeepSeek-R1-Distill-Qwen-14B | B39: 2 | C39: float16 | D39: 0.9.2 | E39: V0 | F39: 否 | G39: 512 | H39: 512 | I39: 8 | J39: 350.82 | K39: 35.98 | L39: 218.55 | M39: 436.62 | N39: 18.74 | O39: 27.31875 | P39: 27.79321845 | S39: 2026.02 | T39: 刘玉升
A40: DeepSeek-R1-Distill-Qwen-14B | B40: 2 | C40: float16 | D40: 0.9.2 | E40: V0 | F40: 否 | G40: 512 | H40: 512 | I40: 16 | J40: 765.74 | K40: 39.47 | L40: 391.24 | M40: 781.62 | N40: 20.94 | O40: 24.4525 | P40: 25.335698 | S40: 2026.02 | T40: 刘玉升
A41: DeepSeek-R1-Distill-Qwen-14B | B41: 2 | C41: float16 | D41: 0.9.2 | E41: V0 | F41: 否 | G41: 512 | H41: 512 | I41: 32 | J41: 1495.04 | K41: 46.41 | L41: 649.66 | M41: 1297.96 | N41: 25.22 | O41: 20.301875 | P41: 21.54708037 | S41: 2026.02 | T41: 刘玉升
A42: DeepSeek-R1-Distill-Qwen-14B | B42: 2 | C42: float16 | D42: 0.9.2 | E42: V0 | F42: 否 | G42: 512 | H42: 512 | I42: 64 | J42: 2874.48 | K42: 61.69 | L42: 952.21 | M42: 1902.51 | N42: 34.41 | O42: 14.87828125 | P42: 16.21008267 | S42: 2026.02 | T42: 刘玉升
A43: DeepSeek-R1-Distill-Qwen-14B | B43: 2 | C43: float16 | D43: 0.9.2 | E43: V0 | F43: 否 | G43: 512 | H43: 512 | I43: 128 | J43: 4367.61 | K43: 103.82 | L43: 1140.79 | M43: 2278.96 | N43: 57.45 | O43: 8.912421875 | P43: 9.632055481 | S43: 2026.02 | T43: 刘玉升
A44: DeepSeek-R1-Distill-Qwen-14B | B44: 2 | C44: float16 | D44: 0.9.2 | E44: V0 | F44: 否 | G44: 1024 | H44: 1024 | I44: 1 | J44: 144.33 | K44: 26.72 | L44: 37.27 | M44: 74.5 | N44: 27.48 | O44: 37.27 | P44: 37.4251497 | S44: 2026.02 | T44: 刘玉升
A45: DeepSeek-R1-Distill-Qwen-14B | B45: 2 | C45: float16 | D45: 0.9.2 | E45: V0 | F45: 否 | G45: 1024 | H45: 1024 | I45: 4 | J45: 380.06 | K45: 32.22 | L45: 122.85 | M45: 245.57 | N45: 33.34 | O45: 30.7125 | P45: 31.03662322 | S45: 2026.02 | T45: 刘玉升
A46: DeepSeek-R1-Distill-Qwen-14B | B46: 2 | C46: float16 | D46: 0.9.2 | E46: V0 | F46: 否 | G46: 1024 | H46: 1024 | I46: 8 | J46: 669.37 | K46: 36.92 | L46: 213.12 | M46: 426 | N46: 38.44 | O46: 26.64 | P46: 27.08559047 | S46: 2026.02 | T46: 刘玉升
A47: DeepSeek-R1-Distill-Qwen-14B | B47: 2 | C47: float16 | D47: 0.9.2 | E47: V0 | F47: 否 | G47: 1024 | H47: 1024 | I47: 16 | J47: 1431.51 | K47: 39.91 | L47: 387.69 | M47: 774.53 | N47: 42.26 | O47: 24.230625 | P47: 25.05637685 | S47: 2026.02 | T47: 刘玉升
A48: DeepSeek-R1-Distill-Qwen-14B | B48: 2 | C48: float16 | D48: 0.9.2 | E48: V0 | F48: 否 | G48: 1024 | H48: 1024 | I48: 32 | J48: 2873.77 | K48: 47.58 | L48: 635.55 | M48: 1270.08 | N48: 51.56 | O48: 19.8609375 | P48: 21.01723413 | S48: 2026.02 | T48: 刘玉升
A49: DeepSeek-R1-Distill-Qwen-14B | B49: 2 | C49: float16 | D49: 0.9.2 | E49: V0 | F49: 否 | G49: 1024 | H49: 1024 | I49: 64 | J49: 4376.04 | K49: 64.39 | L49: 932.7 | M49: 1861.32 | N49: 70.26 | O49: 14.5734375 | P49: 15.53036186 | S49: 2026.02 | T49: 刘玉升
A50: DeepSeek-R1-Distill-Qwen-14B | B50: 2 | C50: float16 | D50: 0.9.2 | E50: V0 | F50: 否 | G50: 1024 | H50: 1024 | I50: 128 | J50: 7327.28 | K50: 106.49 | L50: 1127.04 | M50: 2250.17 | N50: 116.3 | O50: 8.805 | P50: 9.390553104 | S50: 2026.02 | T50: 刘玉升
A51: DeepSeek-R1-Distill-Qwen-14B | B51: 2 | C51: float16 | D51: 0.9.2 | E51: V0 | F51: 否 | G51: 2048 | H51: 2048 | I51: 1 | J51: 235.09 | K51: 27.09 | L51: 36.78 | M51: 73.54 | N51: 55.68 | O51: 36.78 | P51: 36.9139904 | S51: 2026.02 | T51: 刘玉升
A52: DeepSeek-R1-Distill-Qwen-14B | B52: 2 | C52: float16 | D52: 0.9.2 | E52: V0 | F52: 否 | G52: 2048 | H52: 2048 | I52: 4 | J52: 681.15 | K52: 32.79 | L52: 120.83 | M52: 241.6 | N52: 67.8 | O52: 30.2075 | P52: 30.49710278 | S52: 2026.02 | T52: 刘玉升
A53: DeepSeek-R1-Distill-Qwen-14B | B53: 2 | C53: float16 | D53: 0.9.2 | E53: V0 | F53: 否 | G53: 2048 | H53: 2048 | I53: 8 | J53: 1386.65 | K53: 37.74 | L53: 208.35 | M53: 415.97 | N53: 78.64 | O53: 26.04375 | P53: 26.49708532 | S53: 2026.02 | T53: 刘玉升
A54: DeepSeek-R1-Distill-Qwen-14B | B54: 2 | C54: float16 | D54: 0.9.2 | E54: V0 | F54: 否 | G54: 2048 | H54: 2048 | I54: 16 | J54: 2834.2 | K54: 40.95 | L54: 378.07 | M54: 753.44 | N54: 86.67 | O54: 23.629375 | P54: 24.42002442 | S54: 2026.02 | T54: 刘玉升
A55: DeepSeek-R1-Distill-Qwen-14B | B55: 2 | C55: float16 | D55: 0.9.2 | E55: V0 | F55: 否 | G55: 2048 | H55: 2048 | I55: 32 | J55: 4405.95 | K55: 49.22 | L55: 623.16 | M55: 1243.43 | N55: 105.17 | O55: 19.47375 | P55: 20.31694433 | S55: 2026.02 | T55: 刘玉升
A56: DeepSeek-R1-Distill-Qwen-14B | B56: 2 | C56: float16 | D56: 0.9.2 | E56: V0 | F56: 否 | G56: 2048 | H56: 2048 | I56: 64 | J56: 7426.44 | K56: 66.54 | L56: 912.42 | M56: 1820.42 | N56: 143.65 | O56: 14.2565625 | P56: 15.02855425 | S56: 2026.02 | T56: 刘玉升
A57: DeepSeek-R1-Distill-Qwen-14B | B57: 2 | C57: float16 | D57: 0.9.2 | E57: V0 | F57: 否 | G57: 2048 | H57: 2048 | I57: 128 | J57: 13313.8 | K57: 110.55 | L57: 1011.87 | M57: 2019.97 | N57: 259.07 | O57: 7.905234375 | P57: 9.045680687 | S57: 2026.02 | T57: 刘玉升
A58: DeepSeek-R1-Distill-Qwen-14B | B58: 2 | C58: float16 | D58: 0.9.2 | E58: V0 | F58: 否 | G58: 4096 | H58: 1024 | I58: 1 | J58: 436.44 | K58: 27.8 | L58: 35.46 | M58: 177.26 | N58: 28.88 | O58: 35.46 | P58: 35.97122302 | S58: 2026.02 | T58: 刘玉升
A59: DeepSeek-R1-Distill-Qwen-14B | B59: 2 | C59: float16 | D59: 0.9.2 | E59: V0 | F59: 否 | G59: 4096 | H59: 1024 | I59: 4 | J59: 1314.3 | K59: 33.8 | L59: 114.13 | M59: 570.3 | N59: 35.89 | O59: 28.5325 | P59: 29.58579882 | S59: 2026.02 | T59: 刘玉升
A60: DeepSeek-R1-Distill-Qwen-14B | B60: 2 | C60: float16 | D60: 0.9.2 | E60: V0 | F60: 否 | G60: 4096 | H60: 1024 | I60: 8 | J60: 2784.49 | K60: 40.11 | L60: 186.97 | M60: 934.46 | N60: 43.82 | O60: 23.37125 | P60: 24.93143854 | S60: 2026.02 | T60: 刘玉升
A61: DeepSeek-R1-Distill-Qwen-14B | B61: 2 | C61: float16 | D61: 0.9.2 | E61: V0 | F61: 否 | G61: 4096 | H61: 1024 | I61: 16 | J61: 4503.44 | K61: 46.2 | L61: 316.44 | M61: 1578.94 | N61: 51.78 | O61: 19.7775 | P61: 21.64502165 | S61: 2026.02 | T61: 刘玉升
A62: DeepSeek-R1-Distill-Qwen-14B | B62: 2 | C62: float16 | D62: 0.9.2 | E62: V0 | F62: 否 | G62: 4096 | H62: 1024 | I62: 32 | J62: 7634.88 | K62: 59.9 | L62: 475.46 | M62: 2374.64 | N62: 68.92 | O62: 14.858125 | P62: 16.69449082 | S62: 2026.02 | T62: 刘玉升
A63: DeepSeek-R1-Distill-Qwen-14B | B63: 2 | C63: float16 | D63: 0.9.2 | E63: V0 | F63: 否 | G63: 4096 | H63: 1024 | I63: 64 | J63: 13798.02 | K63: 88.26 | L63: 629.5 | M63: 3142.8 | N63: 104.11 | O63: 9.8359375 | P63: 11.33016089 | S63: 2026.02 | T63: 刘玉升
A64: DeepSeek-R1-Distill-Qwen-14B | B64: 2 | C64: float16 | D64: 0.9.2 | E64: V0 | F64: 否 | G64: 4096 | H64: 1024 | I64: 128 | J64: 40198.79 | K64: 126.82 | L64: 590.7 | M64: 2949.37 | N64: 221.89 | O64: 4.61484375 | P64: 7.88519161 | S64: 2026.02 | T64: 刘玉升
A65: DeepSeek-R1-Distill-Qwen-14B | B65: 2 | C65: float16 | D65: 0.9.2 | E65: V0 | F65: 否 | G65: 16384 | H65: 1024 | I65: 1 | J65: 2011.48 | K65: 28.54 | L65: 32.81 | M65: 557.77 | N65: 31.21 | O65: 32.81 | P65: 35.0385424 | S65: 2026.02 | T65: 刘玉升
A66: DeepSeek-R1-Distill-Qwen-14B | B66: 2 | C66: float16 | D66: 0.9.2 | E66: V0 | F66: 否 | G66: 16384 | H66: 1024 | I66: 4 | J66: 5314.29 | K66: 38.96 | L66: 90.68 | M66: 1541.4 | N66: 45.17 | O66: =L66/I66 -> 22.67 | P66: =1000/K66 -> 25.66735113 | S66: 2026.02 | T66: 刘玉升
A67: DeepSeek-R1-Distill-Qwen-14B | B67: 2 | C67: float16 | D67: 0.9.2 | E67: V0 | F67: 否 | G67: 16384 | H67: 1024 | I67: 8 | J67: 9308.88 | K67: 53.43 | L67: 128.06 | M67: 2176.85 | N67: 63.97 | O67: 16.0075 | P67: 18.71607711 | S67: 2026.02 | T67: 刘玉升
A68: DeepSeek-R1-Distill-Qwen-14B | B68: 2 | C68: float16 | D68: 0.9.2 | E68: V0 | F68: 否 | G68: 16384 | H68: 1024 | I68: 16 | J68: 16952.03 | K68: 73.07 | L68: 178.65 | M68: 3036.9 | N68: 91.71 | O68: 11.165625 | P68: 13.68550705 | S68: 2026.02 | T68: 刘玉升
A69: DeepSeek-R1-Distill-Qwen-14B | B69: 2 | C69: float16 | D69: 0.9.2 | E69: V0 | F69: 否 | G69: 16384 | H69: 1024 | I69: 32 | J69: 42320.85 | K69: 95.78 | L69: 178.15 | M69: 3028.4 | N69: 183.93 | O69: 5.5671875 | P69: 10.44059303 | S69: 2026.02 | T69: 刘玉升
A70: DeepSeek-R1-Distill-Qwen-14B | B70: 2 | C70: float16 | D70: 0.9.2 | E70: V0 | F70: 否 | G70: 16384 | H70: 1024 | I70: 64 | J70: 120254.03 | K70: 98.4 | L70: 195.23 | M70: 3318.65 | N70: 335.69 | O70: 3.05046875 | P70: 10.16260163 | S70: 2026.02 | T70: 刘玉升
A71: DeepSeek-R1-Distill-Qwen-14B | B71: 2 | C71: float16 | D71: 0.9.2 | E71: V0 | F71: 否 | G71: 16384 | H71: 1024 | I71: 128 | J71: 274643.03 | K71: 101.65 | L71: 207.1 | M71: 3520.42 | N71: 632.91 | O71: 1.61796875 | P71: 9.837678308 | S71: 2026.02 | T71: 刘玉升
A72: DeepSeek-R1-Distill-Qwen-32B | B72: 2 | C72: float16 | D72: 0.9.2 | E72: V0 | F72: 否 | G72: 512 | H72: 512 | I72: 1 | J72: 187.49 | K72: 46.6 | L72: 21.33 | M72: 42.62 | N72: 24 | O72: 21.33 | P72: 21.45922747 | Q72: vllm:0.9.2-ubuntu22.04-dtk25.04.2-1226-das1.7-py3.10-20251226 | R72: Hygon C86 7490 64-core Processor*2 /DDR5 4800 64G*24 /480G 2.5 SATA 6Gb R SSD*2 /960G 2.5 SATA 6Gb R SSD*4/7.68T*4/BCM 9560-8i Tri-Mode RAID x1/双口1G RJ45网卡x1/DCU K100-AI x8(120CU)/MLX MCX653105A-HDAT 1-port 200G HDR QSFP56 HCA*1/2700W电源模块*4 | S72: 2026.02 | T72: 刘玉升
A73: DeepSeek-R1-Distill-Qwen-32B | B73: 2 | C73: float16 | D73: 0.9.2 | E73: V0 | F73: 否 | G73: 512 | H73: 512 | I73: 4 | J73: 428.95 | K73: 57.78 | L73: 68.37 | M73: 136.6 | N73: 29.96 | O73: 17.0925 | P73: 17.30702665 | S73: 2026.02 | T73: 刘玉升
A74: DeepSeek-R1-Distill-Qwen-32B | B74: 2 | C74: float16 | D74: 0.9.2 | E74: V0 | F74: 否 | G74: 512 | H74: 512 | I74: 8 | J74: 757.68 | K74: 57.93 | L74: 134.91 | M74: 269.53 | N74: 30.36 | O74: 16.86375 | P74: 17.26221302 | S74: 2026.02 | T74: 刘玉升
A75: DeepSeek-R1-Distill-Qwen-32B | B75: 2 | C75: float16 | D75: 0.9.2 | E75: V0 | F75: 否 | G75: 512 | H75: 512 | I75: 16 | J75: 1312.34 | K75: 73 | L75: 212.12 | M75: 423.78 | N75: 38.62 | O75: 13.2575 | P75: 13.69863014 | S75: 2026.02 | T75: 刘玉升
A76: DeepSeek-R1-Distill-Qwen-32B | B76: 2 | C76: float16 | D76: 0.9.2 | E76: V0 | F76: 否 | G76: 512 | H76: 512 | I76: 32 | J76: 2662 | K76: 67.59 | L76: 440.31 | M76: 879.7 | N76: 37.21 | O76: 13.7596875 | P76: 14.79508803 | S76: 2026.02 | T76: 刘玉升
A77: DeepSeek-R1-Distill-Qwen-32B | B77: 2 | C77: float16 | D77: 0.9.2 | E77: V0 | F77: 否 | G77: 512 | H77: 512 | I77: 64 | J77: 5485.8 | K77: 108.7 | L77: 536.78 | M77: 1072.47 | N77: 61.05 | O77: 8.3871875 | P77: 9.199632015 | S77: 2026.02 | T77: 刘玉升
A78: DeepSeek-R1-Distill-Qwen-32B | B78: 2 | C78: float16 | D78: 0.9.2 | E78: V0 | F78: 否 | G78: 512 | H78: 512 | I78: 128 | J78: 8585.67 | K78: 166.47 | L78: 699.55 | M78: 1397.51 | N78: 93.68 | O78: 5.465234375 | P78: 6.007088364 | S78: 2026.02 | T78: 刘玉升
A79: DeepSeek-R1-Distill-Qwen-32B | B79: 2 | C79: float16 | D79: 0.9.2 | E79: V0 | F79: 否 | G79: 1024 | H79: 1024 | I79: 1 | J79: 262.43 | K79: 46.8 | L79: 21.27 | M79: 42.52 | N79: 48.14 | O79: 21.27 | P79: 21.36752137 | S79: 2026.02 | T79: 刘玉升
A80: DeepSeek-R1-Distill-Qwen-32B | B80: 2 | C80: float16 | D80: 0.9.2 | E80: V0 | F80: 否 | G80: 1024 | H80: 1024 | I80: 4 | J80: 755.71 | K80: 57.9 | L80: 68.27 | M80: 136.48 | N80: 59.99 | O80: 17.0675 | P80: 17.27115717 | S80: 2026.02 | T80: 刘玉升
A81: DeepSeek-R1-Distill-Qwen-32B | B81: 2 | C81: float16 | D81: 0.9.2 | E81: V0 | F81: 否 | G81: 1024 | H81: 1024 | I81: 8 | J81: 1259.42 | K81: 58.71 | L81: 133.58 | M81: 267.01 | N81: 61.33 | O81: 16.6975 | P81: 17.03287345 | S81: 2026.02 | T81: 刘玉升
A82: DeepSeek-R1-Distill-Qwen-32B | B82: 2 | C82: float16 | D82: 0.9.2 | E82: V0 | F82: 否 | G82: 1024 | H82: 1024 | I82: 16 | J82: 2297.15 | K82: 73.7 | L82: 210.86 | M82: 421.25 | N82: 77.7 | O82: 13.17875 | P82: 13.56852103 | S82: 2026.02 | T82: 刘玉升
A83: DeepSeek-R1-Distill-Qwen-32B | B83: 2 | C83: float16 | D83: 0.9.2 | E83: V0 | F83: 否 | G83: 1024 | H83: 1024 | I83: 32 | J83: 5509.61 | K83: 67.23 | L83: 441.06 | M83: 881.4 | N83: 74.29 | O83: 13.783125 | P83: 14.87431206 | S83: 2026.02 | T83: 刘玉升
A84: DeepSeek-R1-Distill-Qwen-32B | B84: 2 | C84: float16 | D84: 0.9.2 | E84: V0 | F84: 否 | G84: 1024 | H84: 1024 | I84: 64 | J84: 8392.03 | K84: 111.34 | L84: 535.81 | M84: 1069.27 | N84: 122.31 | O84: 8.37203125 | P84: 8.981498114 | S84: 2026.02 | T84: 刘玉升
A85: DeepSeek-R1-Distill-Qwen-32B | B85: 2 | C85: float16 | D85: 0.9.2 | E85: V0 | F85: 否 | G85: 1024 | H85: 1024 | I85: 128 | J85: 14014.23 | K85: 172.43 | L85: 584.53 | M85: 1167.03 | N85: 224.24 | O85: 4.566640625 | P85: 5.799454851 | S85: 2026.02 | T85: 刘玉升
A86: DeepSeek-R1-Distill-Qwen-32B | B86: 2 | C86: float16 | D86: 0.9.2 | E86: V0 | F86: 否 | G86: 2048 | H86: 2048 | I86: 1 | J86: 437.09 | K86: 46.86 | L86: 21.25 | M86: 42.49 | N86: 96.36 | O86: 21.25 | P86: 21.34016219 | S86: 2026.02 | T86: 刘玉升
A87: DeepSeek-R1-Distill-Qwen-32B | B87: 2 | C87: float16 | D87: 0.9.2 | E87: V0 | F87: 否 | G87: 2048 | H87: 2048 | I87: 4 | J87: 1274.08 | K87: 58.29 | L87: 67.93 | M87: 135.83 | N87: 120.6 | O87: 16.9825 | P87: 17.1556013 | S87: 2026.02 | T87: 刘玉升
A88: DeepSeek-R1-Distill-Qwen-32B | B88: 2 | C88: float16 | D88: 0.9.2 | E88: V0 | F88: 否 | G88: 2048 | H88: 2048 | I88: 8 | J88: 2268.71 | K88: 58.86 | L88: 133.47 | M88: 266.47 | N88: 122.76 | O88: 16.68375 | P88: 16.98946653 | S88: 2026.02 | T88: 刘玉升
A89: DeepSeek-R1-Distill-Qwen-32B | B89: 2 | C89: float16 | D89: 0.9.2 | E89: V0 | F89: 否 | G89: 2048 | H89: 2048 | I89: 16 | J89: 5095.43 | K89: 74.62 | L89: 207.58 | M89: 413.69 | N89: 157.85 | O89: 12.97375 | P89: 13.40123291 | S89: 2026.02 | T89: 刘玉升
A90: DeepSeek-R1-Distill-Qwen-32B | B90: 2 | C90: float16 | D90: 0.9.2 | E90: V0 | F90: 否 | G90: 2048 | H90: 2048 | I90: 32 | J90: 8436.01 | K90: 69.68 | L90: 433.8 | M90: 865.6 | N90: 151.07 | O90: 13.55625 | P90: 14.35132032 | S90: 2026.02 | T90: 刘玉升
A91: DeepSeek-R1-Distill-Qwen-32B | B91: 2 | C91: float16 | D91: 0.9.2 | E91: V0 | F91: 否 | G91: 2048 | H91: 2048 | I91: 64 | J91: 14125.98 | K91: 116.73 | L91: 423.62 | M91: 845.2 | N91: 309.41 | O91: 6.6190625 | P91: 8.566778035 | S91: 2026.02 | T91: 刘玉升
A92: DeepSeek-R1-Distill-Qwen-32B | B92: 2 | C92: float16 | D92: 0.9.2 | E92: V0 | F92: 否 | G92: 2048 | H92: 2048 | I92: 128 | J92: 90166.99 | K92: 156.67 | L92: 443.88 | M92: 886.1 | N92: 590.58 | O92: 3.4678125 | P92: 6.382842918 | S92: 2026.02 | T92: 刘玉升
A93: DeepSeek-R1-Distill-Qwen-32B | B93: 2 | C93: float16 | D93: 0.9.2 | E93: V0 | F93: 否 | G93: 4096 | H93: 1024 | I93: 1 | J93: 788.19 | K93: 46.64 | L93: 21.11 | M93: 105.54 | N93: 48.5 | O93: 21.11 | P93: 21.44082333 | S93: 2026.02 | T93: 刘玉升
A94: DeepSeek-R1-Distill-Qwen-32B | B94: 2 | C94: float16 | D94: 0.9.2 | E94: V0 | F94: 否 | G94: 4096 | H94: 1024 | I94: 4 | J94: 2246.78 | K94: 59.04 | L94: 65.38 | M94: 326.73 | N94: 62.64 | O94: 16.345 | P94: 16.93766938 | S94: 2026.02 | T94: 刘玉升
A95: DeepSeek-R1-Distill-Qwen-32B | B95: 2 | C95: float16 | D95: 0.9.2 | E95: V0 | F95: 否 | G95: 4096 | H95: 1024 | I95: 8 | J95: 4760.25 | K95: 61.27 | L95: 121.47 | M95: 607.13 | N95: 67.44 | O95: 15.18375 | P95: 16.32120124 | S95: 2026.02 | T95: 刘玉升
A96: DeepSeek-R1-Distill-Qwen-32B | B96: 2 | C96: float16 | D96: 0.9.2 | E96: V0 | F96: 否 | G96: 4096 | H96: 1024 | I96: 16 | J96: 8475.86 | K96: 81.6 | L96: 178.18 | M96: 889.06 | N96: 91.95 | O96: 11.13625 | P96: 12.25490196 | S96: 2026.02 | T96: 刘玉升
A97: DeepSeek-R1-Distill-Qwen-32B | B97: 2 | C97: float16 | D97: 0.9.2 | E97: V0 | F97: 否 | G97: 4096 | H97: 1024 | I97: 32 | J97: 14467 | K97: 84.75 | L97: 323.86 | M97: 1617.49 | N97: 101.18 | O97: 10.120625 | P97: 11.79941003 | S97: 2026.02 | T97: 刘玉升
A98: DeepSeek-R1-Distill-Qwen-32B | B98: 2 | C98: float16 | D98: 0.9.2 | E98: V0 | F98: 否 | G98: 4096 | H98: 1024 | I98: 64 | J98: 53362.32 | K98: 122.66 | L98: 261.57 | M98: 1305.88 | N98: 250.55 | O98: 4.08703125 | P98: 8.15261699 | S98: 2026.02 | T98: 刘玉升
A99: DeepSeek-R1-Distill-Qwen-32B | B99: 2 | C99: float16 | D99: 0.9.2 | E99: V0 | F99: 否 | G99: 4096 | H99: 1024 | I99: 128 | J99: 156526.1 | K99: 126.85 | L99: 305.98 | M99: 1527.78 | N99: 428.36 | O99: 2.39046875 | P99: 7.883326764 | S99: 2026.02 | T99: 刘玉升
A100: DeepSeek-R1-Distill-Qwen-32B | B100: 2 | C100: float16 | D100: 0.9.2 | E100: V0 | F100: 否 | G100: 16384 | H100: 1024 | I100: 1 | J100: 3456.49 | K100: 47.04 | L100: 19.85 | M100: 337.48 | N100: 51.58 | O100: 19.85 | P100: 21.2585034 | S100: 2026.02 | T100: 刘玉升
A101: DeepSeek-R1-Distill-Qwen-32B | B101: 2 | C101: float16 | D101: 0.9.2 | E101: V0 | F101: 否 | G101: 16384 | H101: 1024 | I101: 4 | J101: 9388.15 | K101: 66.32 | L101: 53.03 | M101: 901.51 | N101: 77.24 | O101: 13.2575 | P101: 15.07840772 | S101: 2026.02 | T101: 刘玉升
A102: DeepSeek-R1-Distill-Qwen-32B | B102: 2 | C102: float16 | D102: 0.9.2 | E102: V0 | F102: 否 | G102: 16384 | H102: 1024 | I102: 8 | J102: 16545.03 | K102: 80.88 | L102: 82.5 | M102: 1402.48 | N102: 99.29 | O102: 10.3125 | P102: 12.36399604 | S102: 2026.02 | T102: 刘玉升
A103: DeepSeek-R1-Distill-Qwen-32B | B103: 2 | C103: float16 | D103: 0.9.2 | E103: V0 | F103: 否 | G103: 16384 | H103: 1024 | I103: 16 | J103: 53859.21 | K103: 97.94 | L103: 77.05 | M103: 1309.7 | N103: 212.65 | O103: 4.815625 | P103: 10.21033286 | S103: 2026.02 | T103: 刘玉升
A104: DeepSeek-R1-Distill-Qwen-32B | B104: 2 | C104: float16 | D104: 0.9.2 | E104: V0 | F104: 否 | G104: 16384 | H104: 1024 | I104: 32 | J104: 140675.12 | K104: 104.76 | L104: 87.03 | M104: 1479.36 | N104: 376.53 | O104: 2.7196875 | P104: 9.545628102 | S104: 2026.02 | T104: 刘玉升
A105: DeepSeek-R1-Distill-Qwen-32B | B105: 2 | C105: float16 | D105: 0.9.2 | E105: V0 | F105: 否 | G105: 16384 | H105: 1024 | I105: 64 | J105: 321667.93 | K105: 107.23 | L105: 86.98 | M105: 1478.52 | N105: 753.49 | O105: 1.3590625 | P105: 9.325748391 | S105: 2026.02 | T105: 刘玉升
A106: DeepSeek-R1-Distill-Qwen-32B | B106: 2 | C106: float16 | D106: 0.9.2 | E106: V0 | F106: 否 | G106: 16384 | H106: 1024 | I106: 128 | J106: 684822.81 | K106: 109.41 | L106: 89.69 | M106: 1524.63 | N106: 1461.4 | O106: 0.700703125 | P106: 9.139932365 | S106: 2026.02 | T106: 刘玉升
A107: DeepSeek-R1-Distill-Qwen-32B | B107: 4 | C107: float16 | D107: 0.9.2 | E107: V0 | F107: 否 | G107: 512 | H107: 512 | I107: 1 | J107: 128.37 | K107: 31.95 | L107: 31.11 | M107: 62.17 | N107: 16.46 | O107: 31.11 | P107: 31.29890454 | S107: 2026.02 | T107: 刘玉升
A108: DeepSeek-R1-Distill-Qwen-32B | B108: 4 | C108: float16 | D108: 0.9.2 | E108: V0 | F108: 否 | G108: 512 | H108: 512 | I108: 4 | J108: 306.32 | K108: 40.65 | L108: 97.15 | M108: 194.1 | N108: 21.08 | O108: 24.2875 | P108: 24.600246 | S108: 2026.02 | T108: 刘玉升
A109: DeepSeek-R1-Distill-Qwen-32B | B109: 4 | C109: float16 | D109: 0.9.2 | E109: V0 | F109: 否 | G109: 512 | H109: 512 | I109: 8 | J109: 557.36 | K109: 47.9 | L109: 163.6 | M109: 326.85 | N109: 25.04 | O109: 20.45 | P109: 20.87682672 | S109: 2026.02 | T109: 刘玉升
A110: DeepSeek-R1-Distill-Qwen-32B | B110: 4 | C110: float16 | D110: 0.9.2 | E110: V0 | F110: 否 | G110: 512 | H110: 512 | I110: 16 | J110: 1088.33 | K110: 46.66 | L110: 328.54 | M110: 656.35 | N110: 24.93 | O110: 20.53375 | P110: 21.43163309 | S110: 2026.02 | T110: 刘玉升
A111: DeepSeek-R1-Distill-Qwen-32B | B111: 4 | C111: float16 | D111: 0.9.2 | E111: V0 | F111: 否 | G111: 512 | H111: 512 | I111: 32 | J111: 2035.83 | K111: 50.75 | L111: 585.65 | M111: 1170.08 | N111: 27.98 | O111: 18.3015625 | P111: 19.7044335 | S111: 2026.02 | T111: 刘玉升
A112: DeepSeek-R1-Distill-Qwen-32B | B112: 4 | C112: float16 | D112: 0.9.2 | E112: V0 | F112: 否 | G112: 512 | H112: 512 | I112: 64 | J112: 4007.76 | K112: 61.58 | L112: 923.24 | M112: 1844.63 | N112: 35.49 | O112: 14.425625 | P112: 16.23903865 | S112: 2026.02 | T112: 刘玉升
A113: DeepSeek-R1-Distill-Qwen-32B | B113: 4 | C113: float16 | D113: 0.9.2 | E113: V0 | F113: 否 | G113: 512 | H113: 512 | I113: 128 | J113: 6006.76 | K113: 98.28 | L113: 1164.91 | M113: 2327.16 | N113: 56.26 | O113: 9.100859375 | P113: 10.17501018 | S113: 2026.02 | T113: 刘玉升
A114: DeepSeek-R1-Distill-Qwen-32B | B114: 4 | C114: float16 | D114: 0.9.2 | E114: V0 | F114: 否 | G114: 1024 | H114: 1024 | I114: 1 | J114: 195.99 | K114: 32.59 | L114: 30.53 | M114: 61.03 | N114: 33.54 | O114: 30.53 | P114: 30.68425898 | S114: 2026.02 | T114: 刘玉升
A115: DeepSeek-R1-Distill-Qwen-32B | B115: 4 | C115: float16 | D115: 0.9.2 | E115: V0 | F115: 否 | G115: 1024 | H115: 1024 | I115: 4 | J115: 552.97 | K115: 41.77 | L115: 94.63 | M115: 189.16 | N115: 43.29 | O115: 23.6575 | P115: 23.94062724 | S115: 2026.02 | T115: 刘玉升
A116: DeepSeek-R1-Distill-Qwen-32B | B116: 4 | C116: float16 | D116: 0.9.2 | E116: V0 | F116: 否 | G116: 1024 | H116: 1024 | I116: 8 | J116: 904.12 | K116: 48.72 | L116: 161.42 | M116: 322.66 | N116: 50.75 | O116: 20.1775 | P116: 20.52545156 | S116: 2026.02 | T116: 刘玉升
A117: DeepSeek-R1-Distill-Qwen-32B | B117: 4 | C117: float16 | D117: 0.9.2 | E117: V0 | F117: 否 | G117: 1024 | H117: 1024 | I117: 16 | J117: 1959.74 | K117: 47.81 | L117: 322.02 | M117: 643.33 | N117: 50.88 | O117: 20.12625 | P117: 20.91612633 | S117: 2026.02 | T117: 刘玉升
A118: DeepSeek-R1-Distill-Qwen-32B | B118: 4 | C118: float16 | D118: 0.9.2 | E118: V0 | F118: 否 | G118: 1024 | H118: 1024 | I118: 32 | J118: 3948.83 | K118: 52.35 | L118: 569.72 | M118: 1138.52 | N118: 57.52 | O118: 17.80375 | P118: 19.10219675 | S118: 2026.02 | T118: 刘玉升
A119: DeepSeek-R1-Distill-Qwen-32B | B119: 4 | C119: float16 | D119: 0.9.2 | E119: V0 | F119: 否 | G119: 1024 | H119: 1024 | I119: 64 | J119: 5990.77 | K119: 64.39 | L119: 911.78 | M119: 1819.57 | N119: 71.88 | O119: 14.2465625 | P119: 15.53036186 | S119: 2026.02 | T119: 刘玉升
A120: DeepSeek-R1-Distill-Qwen-32B | B120: 4 | C120: float16 | D120: 0.9.2 | E120: V0 | F120: 否 | G120: 1024 | H120: 1024 | I120: 128 | J120: 10005.89 | K120: 101.1 | L120: 1155.25 | M120: 2306.5 | N120: 113.46 | O120: 9.025390625 | P120: 9.891196835 | S120: 2026.02 | T120: 刘玉升
A121: DeepSeek-R1-Distill-Qwen-32B | B121: 4 | C121: float16 | D121: 0.9.2 | E121: V0 | F121: 否 | G121: 2048 | H121: 2048 | I121: 1 | J121: 313.9 | K121: 33.1 | L121: 30.08 | M121: 60.15 | N121: 68.08 | O121: 30.08 | P121: 30.21148036 | S121: 2026.02 | T121: 刘玉升
A122: DeepSeek-R1-Distill-Qwen-32B | B122: 4 | C122: float16 | D122: 0.9.2 | E122: V0 | F122: 否 | G122: 2048 | H122: 2048 | I122: 4 | J122: 911.64 | K122: 42.15 | L122: 93.95 | M122: 187.86 | N122: 87.19 | O122: 23.4875 | P122: 23.72479241 | S122: 2026.02 | T122: 刘玉升
A123: DeepSeek-R1-Distill-Qwen-32B | B123: 4 | C123: float16 | D123: 0.9.2 | E123: V0 | F123: 否 | G123: 2048 | H123: 2048 | I123: 8 | J123: 1871.06 | K123: 48.81 | L123: 160.97 | M123: 321.38 | N123: 101.78 | O123: 20.12125 | P123: 20.487605 | S123: 2026.02 | T123: 刘玉升
A124: DeepSeek-R1-Distill-Qwen-32B | B124: 4 | C124: float16 | D124: 0.9.2 | E124: V0 | F124: 否 | G124: 2048 | H124: 2048 | I124: 16 | J124: 3843.64 | K124: 48.67 | L124: 316.66 | M124: 631.06 | N124: 103.48 | O124: 19.79125 | P124: 20.54653791 | S124: 2026.02 | T124: 刘玉升
A125: DeepSeek-R1-Distill-Qwen-32B | B125: 4 | C125: float16 | D125: 0.9.2 | E125: V0 | F125: 否 | G125: 2048 | H125: 2048 | I125: 32 | J125: 5990.21 | K125: 54.21 | L125: 560.28 | M125: 1117.96 | N125: 116.97 | O125: 17.50875 | P125: 18.44678104 | S125: 2026.02 | T125: 刘玉升
A126: DeepSeek-R1-Distill-Qwen-32B | B126: 4 | C126: float16 | D126: 0.9.2 | E126: V0 | F126: 否 | G126: 2048 | H126: 2048 | I126: 64 | J126: 10087.21 | K126: 67.17 | L126: 888.01 | M126: 1771.73 | N126: 147.6 | O126: 13.87515625 | P126: 14.88759863 | S126: 2026.02 | T126: 刘玉升
A127: DeepSeek-R1-Distill-Qwen-32B | B127: 4 | C127: float16 | D127: 0.9.2 | E127: V0 | F127: 否 | G127: 2048 | H127: 2048 | I127: 128 | J127: 18454.45 | K127: 103.39 | L127: 1139.14 | M127: 2274.04 | N127: 230.12 | O127: 8.89953125 | P127: 9.672115292 | S127: 2026.02 | T127: 刘玉升
A128: DeepSeek-R1-Distill-Qwen-32B | B128: 4 | C128: float16 | D128: 0.9.2 | E128: V0 | F128: 否 | G128: 4096 | H128: 1024 | I128: 1 | J128: 575.9 | K128: 32.83 | L128: 29.98 | M128: 149.85 | N128: 34.16 | O128: 29.98 | P128: 30.45994517 | S128: 2026.02 | T128: 刘玉升
A129: DeepSeek-R1-Distill-Qwen-32B | B129: 4 | C129: float16 | D129: 0.9.2 | E129: V0 | F129: 否 | G129: 4096 | H129: 1024 | I129: 4 | J129: 1751.53 | K129: 43.04 | L129: 89.47 | M129: 447.11 | N129: 45.78 | O129: 22.3675 | P129: 23.23420074 | S129: 2026.02 | T129: 刘玉升
A130: DeepSeek-R1-Distill-Qwen-32B | B130: 4 | C130: float16 | D130: 0.9.2 | E130: V0 | F130: 否 | G130: 4096 | H130: 1024 | I130: 8 | J130: 3713.38 | K130: 49.97 | L130: 149.39 | M130: 746.67 | N130: 54.84 | O130: =L130/I130 -> 18.67375 | P130: =1000/K130 -> 20.0120072 | S130: 2026.02 | T130: 刘玉升
A131: DeepSeek-R1-Distill-Qwen-32B | B131: 4 | C131: float16 | D131: 0.9.2 | E131: V0 | F131: 否 | G131: 4096 | H131: 1024 | I131: 16 | J131: 6000.43 | K131: 52.98 | L131: 272.13 | M131: 1357.88 | N131: 60.21 | O131: 17.008125 | P131: 18.87504719 | S131: 2026.02 | T131: 刘玉升
A132: DeepSeek-R1-Distill-Qwen-32B | B132: 4 | C132: float16 | D132: 0.9.2 | E132: V0 | F132: 否 | G132: 4096 | H132: 1024 | I132: 32 | J132: 10200.6 | K132: 64.94 | L132: 427.54 | M132: 2135.26 | N132: 76.64 | O132: 13.360625 | P132: 15.39882969 | S132: 2026.02 | T132: 刘玉升
A133: DeepSeek-R1-Distill-Qwen-32B | B133: 4 | C133: float16 | D133: 0.9.2 | E133: V0 | F133: 否 | G133: 4096 | H133: 1024 | I133: 64 | J133: 18437.26 | K133: 87.16 | L133: 608.95 | M133: 3040.22 | N133: 107.62 | O133: 9.51484375 | P133: 11.47315282 | S133: 2026.02 | T133: 刘玉升
A134: DeepSeek-R1-Distill-Qwen-32B | B134: 4 | C134: float16 | D134: 0.9.2 | E134: V0 | F134: 否 | G134: 4096 | H134: 1024 | I134: 128 | J134: 34803.75 | K134: 142.68 | L134: 724.95 | M134: 3619.66 | N134: 180.8 | O134: 5.663671875 | P134: 7.008690777 | S134: 2026.02 | T134: 刘玉升
A135: DeepSeek-R1-Distill-Qwen-32B | B135: 4 | C135: float16 | D135: 0.9.2 | E135: V0 | F135: 否 | G135: 16384 | H135: 1024 | I135: 1 | J135: 2384.98 | K135: 33.62 | L135: 27.84 | M135: 473.27 | N135: 36.78 | O135: 27.84 | P135: 29.74419988 | S135: 2026.02 | T135: 刘玉升
A136: DeepSeek-R1-Distill-Qwen-32B | B136: 4 | C136: float16 | D136: 0.9.2 | E136: V0 | F136: 否 | G136: 16384 | H136: 1024 | I136: 4 | J136: 6415.59 | K136: 46.4 | L136: 76.02 | M136: 1292.25 | N136: 53.88 | O136: 19.005 | P136: 21.55172414 | S136: 2026.02 | T136: 刘玉升
A137: DeepSeek-R1-Distill-Qwen-32B | B137: 4 | C137: float16 | D137: 0.9.2 | E137: V0 | F137: 否 | G137: 16384 | H137: 1024 | I137: 8 | J137: 11241.93 | K137: 62.39 | L137: 109.12 | M137: 1854.88 | N137: 75.08 | O137: 13.64 | P137: 16.02820965 | S137: 2026.02 | T137: 刘玉升
A138: DeepSeek-R1-Distill-Qwen-32B | B138: 4 | C138: float16 | D138: 0.9.2 | E138: V0 | F138: 否 | G138: 16384 | H138: 1024 | I138: 16 | J138: 20492.56 | K138: 78.07 | L138: 163.25 | M138: 2775.02 | N138: 100.36 | O138: 10.203125 | P138: 12.80901755 | S138: 2026.02 | T138: 刘玉升
A139: DeepSeek-R1-Distill-Qwen-32B | B139: 4 | C139: float16 | D139: 0.9.2 | E139: V0 | F139: 否 | G139: 16384 | H139: 1024 | I139: 32 | J139: 38716.32 | K139: 113.69 | L139: 211.35 | M139: 3592.77 | N139: 155.04 | O139: 6.6046875 | P139: 8.79584836 | S139: 2026.02 | T139: 刘玉升
A140: DeepSeek-R1-Distill-Qwen-32B | B140: 4 | C140: float16 | D140: 0.9.2 | E140: V0 | F140: 否 | G140: 16384 | H140: 1024 | I140: 64 | J140: 111430.48 | K140: 124.41 | L140: 206.27 | M140: 3506.38 | N140: 317.72 | O140: 3.22296875 | P140: 8.037939072 | S140: 2026.02 | T140: 刘玉升
A141: DeepSeek-R1-Distill-Qwen-32B | B141: 4 | C141: float16 | D141: 0.9.2 | E141: V0 | F141: 否 | G141: 16384 | H141: 1024 | I141: 128 | J141: 260918.18 | K141: 136.54 | L141: 203.17 | M141: 3453.69 | N141: 645.14 | O141: 1.587265625 | P141: 7.32386114 | S141: 2026.02 | T141: 刘玉升
A142: DeepSeek-R1-Distill-Llama-70B | B142: 4 | C142: float16 | D142: 0.9.2 | E142: V0 | F142: 否 | G142: 512 | H142: 512 | I142: 1 | J142: 228.71 | K142: 53.2 | L142: 18.67 | M142: 37.31 | N142: 27.42 | O142: 18.67 | P142: 18.79699248 | Q142: vllm:0.9.2-ubuntu22.04-dtk25.04.2-1226-das1.7-py3.10-20251226 | R142: Hygon C86 7490 64-core Processor*2 /DDR5 4800 64G*24 /480G 2.5 SATA 6Gb R SSD*2 /960G 2.5 SATA 6Gb R SSD*4/7.68T*4/BCM 9560-8i Tri-Mode RAID x1/双口1G RJ45网卡x1/DCU K100-AI x8(120CU)/MLX MCX653105A-HDAT 1-port 200G HDR QSFP56 HCA*1/2700W电源模块*4 | S142: 2026.02 | T142: 刘玉升
A143: DeepSeek-R1-Distill-Llama-70B | B143: 4 | C143: float16 | D143: 0.9.2 | E143: V0 | F143: 否 | G143: 512 | H143: 512 | I143: 4 | J143: 610.48 | K143: 63.83 | L143: 61.64 | M143: 123.15 | N143: 33.23 | O143: 15.41 | P143: 15.66661444 | S143: 2026.02 | T143: 刘玉升
A144: DeepSeek-R1-Distill-Llama-70B | B144: 4 | C144: float16 | D144: 0.9.2 | E144: V0 | F144: 否 | G144: 512 | H144: 512 | I144: 8 | J144: 1125.97 | K144: 63.99 | L144: 121.08 | M144: 241.93 | N144: 33.83 | O144: 15.135 | P144: 15.62744179 | S144: 2026.02 | T144: 刘玉升
A145: DeepSeek-R1-Distill-Llama-70B | B145: 4 | C145: float16 | D145: 0.9.2 | E145: V0 | F145: 否 | G145: 512 | H145: 512 | I145: 16 | J145: 2160.67 | K145: 67.29 | L145: 224.14 | M145: 447.84 | N145: 36.55 | O145: 14.00875 | P145: 14.86104919 | S145: 2026.02 | T145: 刘玉升
A146: DeepSeek-R1-Distill-Llama-70B | B146: 4 | C146: float16 | D146: 0.9.2 | E146: V0 | F146: 否 | G146: 512 | H146: 512 | I146: 32 | J146: 3539.24 | K146: 77.87 | L146: 378.01 | M146: 755.29 | N146: 43.34 | O146: 11.8128125 | P146: 12.84191601 | S146: 2026.02 | T146: 刘玉升
A147: DeepSeek-R1-Distill-Llama-70B | B147: 4 | C147: float16 | D147: 0.9.2 | E147: V0 | F147: 否 | G147: 512 | H147: 512 | I147: 64 | J147: 8216.65 | K147: 103.52 | L147: 536.01 | M147: 1070.98 | N147: 61.13 | O147: 8.37515625 | P147: 9.659969088 | S147: 2026.02 | T147: 刘玉升
A148: DeepSeek-R1-Distill-Llama-70B | B148: 4 | C148: float16 | D148: 0.9.2 | E148: V0 | F148: 否 | G148: 512 | H148: 512 | I148: 128 | J148: 12448.32 | K148: 155.43 | L148: 713.09 | M148: 1423.27 | N148: 91.9 | O148: 5.571015625 | P148: 6.433764396 | S148: 2026.02 | T148: 刘玉升
A149: DeepSeek-R1-Distill-Llama-70B | B149: 4 | C149: float16 | D149: 0.9.2 | E149: V0 | F149: 否 | G149: 1024 | H149: 1024 | I149: 1 | J149: 347.01 | K149: 53.28 | L149: 18.67 | M149: 37.32 | N149: 54.85 | O149: 18.67 | P149: 18.76876877 | S149: 2026.02 | T149: 刘玉升
A150: DeepSeek-R1-Distill-Llama-70B | B150: 4 | C150: float16 | D150: 0.9.2 | E150: V0 | F150: 否 | G150: 1024 | H150: 1024 | I150: 4 | J150: 1128.92 | K150: 63.83 | L150: 61.66 | M150: 123.26 | N150: 66.43 | O150: 15.415 | P150: 15.66661444 | S150: 2026.02 | T150: 刘玉升
A151: DeepSeek-R1-Distill-Llama-70B | B151: 4 | C151: float16 | D151: 0.9.2 | E151: V0 | F151: 否 | G151: 1024 | H151: 1024 | I151: 8 | J151: 2165.18 | K151: 64.42 | L151: 120.34 | M151: 240.56 | N151: 68.07 | O151: 15.0425 | P151: 15.52312946 | S151: 2026.02 | T151: 刘玉升
A152: DeepSeek-R1-Distill-Llama-70B | B152: 4 | C152: float16 | D152: 0.9.2 | E152: V0 | F152: 否 | G152: 1024 | H152: 1024 | I152: 16 | J152: 3284.07 | K152: 69.02 | L152: 221.71 | M152: 443.21 | N152: 73.9 | O152: 13.856875 | P152: 14.48855404 | S152: 2026.02 | T152: 刘玉升
A153: DeepSeek-R1-Distill-Llama-70B | B153: 4 | C153: float16 | D153: 0.9.2 | E153: V0 | F153: 否 | G153: 1024 | H153: 1024 | I153: 32 | J153: 7780.76 | K153: 77.8 | L153: 375.01 | M153: 749.66 | N153: 87.38 | O153: 11.7190625 | P153: 12.85347044 | S153: 2026.02 | T153: 刘玉升
A154: DeepSeek-R1-Distill-Llama-70B | B154: 4 | C154: float16 | D154: 0.9.2 | E154: V0 | F154: 否 | G154: 1024 | H154: 1024 | I154: 64 | J154: 12397.32 | K154: 107.02 | L154: 537.66 | M154: 1074.8 | N154: 121.89 | O154: 8.4009375 | P154: 9.344047842 | S154: 2026.02 | T154: 刘玉升
A155: DeepSeek-R1-Distill-Llama-70B | B155: 4 | C155: float16 | D155: 0.9.2 | E155: V0 | F155: 否 | G155: 1024 | H155: 1024 | I155: 128 | J155: 20951.29 | K155: 160.2 | L155: 709 | M155: 1416.54 | N155: 184.87 | O155: 5.5390625 | P155: 6.242197253 | S155: 2026.02 | T155: 刘玉升
A156: DeepSeek-R1-Distill-Llama-70B | B156: 4 | C156: float16 | D156: 0.9.2 | E156: V0 | F156: 否 | G156: 2048 | H156: 2048 | I156: 1 | J156: 616.36 | K156: 53.34 | L156: 18.65 | M156: 37.29 | N156: 109.8 | O156: 18.65 | P156: 18.74765654 | S156: 2026.02 | T156: 刘玉升
A157: DeepSeek-R1-Distill-Llama-70B | B157: 4 | C157: float16 | D157: 0.9.2 | E157: V0 | F157: 否 | G157: 2048 | H157: 2048 | I157: 4 | J157: 2183.99 | K157: 63.98 | L157: 61.53 | M157: 123.02 | N157: 133.15 | O157: 15.3825 | P157: 15.62988434 | S157: 2026.02 | T157: 刘玉升
A158: DeepSeek-R1-Distill-Llama-70B | B158: 4 | C158: float16 | D158: 0.9.2 | E158: V0 | F158: 否 | G158: 2048 | H158: 2048 | I158: 8 | J158: 3361.55 | K158: 64.93 | L158: 120.22 | M158: 240.38 | N158: 136.28 | O158: 15.0275 | P158: 15.40120129 | S158: 2026.02 | T158: 刘玉升
A159: DeepSeek-R1-Distill-Llama-70B | B159: 4 | C159: float16 | D159: 0.9.2 | E159: V0 | F159: 否 | G159: 2048 | H159: 2048 | I159: 16 | J159: 7312.37 | K159: 69 | L159: 220.58 | M159: 441.05 | N159: 148.56 | O159: 13.78625 | P159: 14.49275362 | S159: 2026.02 | T159: 刘玉升
A160: DeepSeek-R1-Distill-Llama-70B | B160: 4 | C160: float16 | D160: 0.9.2 | E160: V0 | F160: 否 | G160: 2048 | H160: 2048 | I160: 32 | J160: 12573.84 | K160: 81.13 | L160: 366.81 | M160: 733.43 | N160: 178.67 | O160: 11.4628125 | P160: 12.32589671 | S160: 2026.02 | T160: 刘玉升
A161: DeepSeek-R1-Distill-Llama-70B | B161: 4 | C161: float16 | D161: 0.9.2 | E161: V0 | F161: 否 | G161: 2048 | H161: 2048 | I161: 64 | J161: 21215.86 | K161: 110.16 | L161: 531.22 | M161: 1062.18 | N161: 246.74 | O161: 8.3003125 | P161: 9.077705156 | S161: 2026.02 | T161: 刘玉升
A162: DeepSeek-R1-Distill-Llama-70B | B162: 4 | C162: float16 | D162: 0.9.2 | E162: V0 | F162: 否 | G162: 2048 | H162: 2048 | I162: 128 | J162: 38313.54 | K162: 172.25 | L162: 509.48 | M162: 1018.5 | N162: 514.53 | O162: 3.9803125 | P162: 5.805515239 | S162: 2026.02 | T162: 刘玉升
A163: DeepSeek-R1-Distill-Llama-70B | B163: 4 | C163: float16 | D163: 0.9.2 | E163: V0 | F163: 否 | G163: 4096 | H163: 1024 | I163: 1 | J163: 1160.67 | K163: 53.32 | L163: 18.38 | M163: 91.89 | N163: 55.71 | O163: 18.38 | P163: 18.75468867 | S163: 2026.02 | T163: 刘玉升
A164: DeepSeek-R1-Distill-Llama-70B | B164: 4 | C164: float16 | D164: 0.9.2 | E164: V0 | F164: 否 | G164: 4096 | H164: 1024 | I164: 4 | J164: 3650.94 | K164: 64.41 | L164: 58.9 | M164: 294.44 | N164: 69.54 | O164: 14.725 | P164: 15.52553951 | S164: 2026.02 | T164: 刘玉升
A165: DeepSeek-R1-Distill-Llama-70B | B165: 4 | C165: float16 | D165: 0.9.2 | E165: V0 | F165: 否 | G165: 4096 | H165: 1024 | I165: 8 | J165: 7087.13 | K165: 66.47 | L165: 109.1 | M165: 545.37 | N165: 75.09 | O165: 13.6375 | P165: 15.04438092 | S165: 2026.02 | T165: 刘玉升
A166: DeepSeek-R1-Distill-Llama-70B | B166: 4 | C166: float16 | D166: 0.9.2 | E166: V0 | F166: 否 | G166: 4096 | H166: 1024 | I166: 16 | J166: 12572.4 | K166: 75.59 | L166: 182.24 | M166: 911.02 | N166: 89.9 | O166: 11.39 | P166: 13.22926313 | S166: 2026.02 | T166: 刘玉升
A167: DeepSeek-R1-Distill-Llama-70B | B167: 4 | C167: float16 | D167: 0.9.2 | E167: V0 | F167: 否 | G167: 4096 | H167: 1024 | I167: 32 | J167: 21444.24 | K167: 95.69 | L167: 274.56 | M167: 1372.52 | N167: 119.35 | O167: 8.58 | P167: 10.45041279 | S167: 2026.02 | T167: 刘玉升
A168: DeepSeek-R1-Distill-Llama-70B | B168: 4 | C168: float16 | D168: 0.9.2 | E168: V0 | F168: 否 | G168: 4096 | H168: 1024 | I168: 64 | J168: 38750.61 | K168: 142.53 | L168: 322.92 | M168: 1614.17 | N168: 202.95 | O168: 5.045625 | P168: 7.016066793 | S168: 2026.02 | T168: 刘玉升
A169: DeepSeek-R1-Distill-Llama-70B | B169: 4 | C169: float16 | D169: 0.9.2 | E169: V0 | F169: 否 | G169: 4096 | H169: 1024 | I169: 128 | J169: 130354.99 | K169: 159.77 | L169: 336.95 | M169: 1684.09 | N169: 389 | O169: 2.632421875 | P169: 6.258997309 | S169: 2026.02 | T169: 刘玉升
A170: DeepSeek-R1-Distill-Llama-70B | B170: 4 | C170: float16 | D170: 0.9.2 | E170: V0 | F170: 否 | G170: 16384 | H170: 1024 | I170: 1 | J170: 4878.95 | K170: 53.87 | L170: 17.07 | M170: 290.17 | N170: 59.99 | O170: 17.07 | P170: 18.56320772 | S170: 2026.02 | T170: 刘玉升
A171: DeepSeek-R1-Distill-Llama-70B | B171: 4 | C171: float16 | D171: 0.9.2 | E171: V0 | F171: 否 | G171: 16384 | H171: 1024 | I171: 4 | J171: 13301.24 | K171: 70.65 | L171: 47.86 | M171: 813.62 | N171: 85.58 | O171: 11.965 | P171: 14.15428167 | S171: 2026.02 | T171: 刘玉升
A172: DeepSeek-R1-Distill-Llama-70B | B172: 4 | C172: float16 | D172: 0.9.2 | E172: V0 | F172: 否 | G172: 16384 | H172: 1024 | I172: 8 | J172: 23483.09 | K172: 85.42 | L172: 73.89 | M172: 1256.03 | N172: 110.87 | O172: 9.23625 | P172: 11.70686022 | S172: 2026.02 | T172: 刘玉升
A173: DeepSeek-R1-Distill-Llama-70B | B173: 4 | C173: float16 | D173: 0.9.2 | E173: V0 | F173: 否 | G173: 16384 | H173: 1024 | I173: 16 | J173: 42946.53 | K173: 115.33 | L173: 101.8 | M173: 1730.57 | N173: 160.94 | O173: 6.3625 | P173: 8.670770832 | S173: 2026.02 | T173: 刘玉升
A174: DeepSeek-R1-Distill-Llama-70B | B174: 4 | C174: float16 | D174: 0.9.2 | E174: V0 | F174: 否 | G174: 16384 | H174: 1024 | I174: 32 | J174: 121144.45 | K174: 118.13 | L174: 100.67 | M174: 1711.24 | N174: 325.51 | O174: 3.1459375 | P174: 8.465250148 | S174: 2026.02 | T174: 刘玉升
A175: DeepSeek-R1-Distill-Llama-70B | B175: 4 | C175: float16 | D175: 0.9.2 | E175: V0 | F175: 否 | G175: 16384 | H175: 1024 | I175: 64 | J175: 275907.48 | K175: 119.95 | L175: 100.67 | M175: 1711.36 | N175: 650.97 | O175: 1.57296875 | P175: 8.336807003 | S175: 2026.02 | T175: 刘玉升
A176: DeepSeek-R1-Distill-Llama-70B | B176: 4 | C176: float16 | D176: 0.9.2 | E176: V0 | F176: 否 | G176: 16384 | H176: 1024 | I176: 128 | J176: 588019.43 | K176: 124.42 | L176: 100.34 | M176: 1705.61 | N176: 1306.33 | O176: 0.78390625 | P176: 8.03729304 | S176: 2026.02 | T176: 刘玉升
A177: DeepSeek-R1-Distill-Llama-70B | B177: 8 | C177: float16 | D177: 0.9.2 | E177: V0 | F177: 否 | G177: 512 | H177: 512 | I177: 1 | J177: 163.14 | K177: 33.84 | L177: 29.33 | M177: 58.6 | N177: 17.46 | O177: 29.33 | P177: 29.55082742 | S177: 2026.02 | T177: 刘玉升
A178: DeepSeek-R1-Distill-Llama-70B | B178: 8 | C178: float16 | D178: 0.9.2 | E178: V0 | F178: 否 | G178: 512 | H178: 512 | I178: 4 | J178: 473.94 | K178: 44.18 | L178: 88.84 | M178: 177.5 | N178: 23.05 | O178: 22.21 | P178: 22.63467632 | S178: 2026.02 | T178: 刘玉升
A179: DeepSeek-R1-Distill-Llama-70B | B179: 8 | C179: float16 | D179: 0.9.2 | E179: V0 | F179: 否 | G179: 512 | H179: 512 | I179: 8 | J179: 880.14 | K179: 57.1 | L179: 136.24 | M179: 272.22 | N179: 30.06 | O179: 17.03 | P179: 17.51313485 | S179: 2026.02 | T179: 刘玉升
A180: DeepSeek-R1-Distill-Llama-70B | B180: 8 | C180: float16 | D180: 0.9.2 | E180: V0 | F180: 否 | G180: 512 | H180: 512 | I180: 16 | J180: 1763.3 | K180: 49.96 | L180: 300.11 | M180: 599.63 | N180: 27.3 | O180: 18.756875 | P180: 20.01601281 | S180: 2026.02 | T180: 刘玉升
A181: DeepSeek-R1-Distill-Llama-70B | B181: 8 | C181: float16 | D181: 0.9.2 | E181: V0 | F181: 否 | G181: 512 | H181: 512 | I181: 32 | J181: 3359.7 | K181: 55.59 | L181: 515.63 | M181: 1030.24 | N181: 31.78 | O181: 16.1134375 | P181: 17.98884691 | S181: 2026.02 | T181: 刘玉升
A182: DeepSeek-R1-Distill-Llama-70B | B182: 8 | C182: float16 | D182: 0.9.2 | E182: V0 | F182: 否 | G182: 512 | H182: 512 | I182: 64 | J182: 6288.08 | K182: 72.04 | L182: 759.97 | M182: 1518.46 | N182: 43.12 | O182: 11.87453125 | P182: 13.88117712 | S182: 2026.02 | T182: 刘玉升
A183: DeepSeek-R1-Distill-Llama-70B | B183: 8 | C183: float16 | D183: 0.9.2 | E183: V0 | F183: 否 | G183: 512 | H183: 512 | I183: 128 | J183: 10023.09 | K183: 112.89 | L183: 967.44 | M183: 1930.92 | N183: 67.74 | O183: 7.558125 | P183: 8.85818053 | S183: 2026.02 | T183: 刘玉升
A184: DeepSeek-R1-Distill-Llama-70B | B184: 8 | C184: float16 | D184: 0.9.2 | E184: V0 | F184: 否 | G184: 1024 | H184: 1024 | I184: 1 | J184: 287.65 | K184: 35.74 | L184: 27.79 | M184: 55.54 | N184: 36.85 | O184: 27.79 | P184: 27.9798545 | S184: 2026.02 | T184: 刘玉升
A185: DeepSeek-R1-Distill-Llama-70B | B185: 8 | C185: float16 | D185: 0.9.2 | E185: V0 | F185: 否 | G185: 1024 | H185: 1024 | I185: 4 | J185: 884.53 | K185: 46.9 | L185: 83.83 | M185: 167.58 | N185: 48.86 | O185: 20.9575 | P185: 21.32196162 | S185: 2026.02 | T185: 刘玉升
A186: DeepSeek-R1-Distill-Llama-70B | B186: 8 | C186: float16 | D186: 0.9.2 | E186: V0 | F186: 否 | G186: 1024 | H186: 1024 | I186: 8 | J186: 1443.04 | K186: 59.35 | L186: 131.8 | M186: 263.46 | N186: 62.16 | O186: 16.475 | P186: 16.84919966 | S186: 2026.02 | T186: 刘玉升
A187: DeepSeek-R1-Distill-Llama-70B | B187: 8 | C187: float16 | D187: 0.9.2 | E187: V0 | F187: 否 | G187: 1024 | H187: 1024 | I187: 16 | J187: 3011.53 | K187: 51.51 | L187: 294.09 | M187: 587.88 | N187: 55.71 | O187: 18.380625 | P187: 19.41370608 | S187: 2026.02 | T187: 刘玉升
A188: DeepSeek-R1-Distill-Llama-70B | B188: 8 | C188: float16 | D188: 0.9.2 | E188: V0 | F188: 否 | G188: 1024 | H188: 1024 | I188: 32 | J188: 6638.32 | K188: 58.2 | L188: 495.11 | M188: 989.74 | N188: 66.18 | O188: 15.4721875 | P188: 17.18213058 | S188: 2026.02 | T188: 刘玉升
A189: DeepSeek-R1-Distill-Llama-70B | B189: 8 | C189: float16 | D189: 0.9.2 | E189: V0 | F189: 否 | G189: 1024 | H189: 1024 | I189: 64 | J189: 9700.83 | K189: 76.57 | L189: 744.34 | M189: 1487.95 | N189: 88.05 | O189: 11.6303125 | P189: 13.05994515 | S189: 2026.02 | T189: 刘玉升
A190: DeepSeek-R1-Distill-Llama-70B | B190: 8 | C190: float16 | D190: 0.9.2 | E190: V0 | F190: 否 | G190: 1024 | H190: 1024 | I190: 128 | J190: 16528.23 | K190: 117.86 | L190: 955.83 | M190: 1909.7 | N190: 137.13 | O190: 7.467421875 | P190: 8.484642797 | S190: 2026.02 | T190: 刘玉升
A191: DeepSeek-R1-Distill-Llama-70B | B191: 8 | C191: float16 | D191: 0.9.2 | E191: V0 | F191: 否 | G191: 2048 | H191: 2048 | I191: 1 | J191: 484.22 | K191: 36.9 | L191: 26.94 | M191: 53.87 | N191: 76.02 | O191: 26.94 | P191: 27.100271 | S191: 2026.02 | T191: 刘玉升
A192: DeepSeek-R1-Distill-Llama-70B | B192: 8 | C192: float16 | D192: 0.9.2 | E192: V0 | F192: 否 | G192: 2048 | H192: 2048 | I192: 4 | J192: 1451.53 | K192: 47.63 | L192: 82.78 | M192: 165.53 | N192: 98.96 | O192: 20.695 | P192: 20.99517111 | S192: 2026.02 | T192: 刘玉升
A193: DeepSeek-R1-Distill-Llama-70B | B193: 8 | C193: float16 | D193: 0.9.2 | E193: V0 | F193: 否 | G193: 2048 | H193: 2048 | I193: 8 | J193: 3035.58 | K193: 61.13 | L193: 127.83 | M193: 255.61 | N193: 128.17 | O193: 15.97875 | P193: 16.35858008 | S193: 2026.02 | T193: 刘玉升
A194: DeepSeek-R1-Distill-Llama-70B | B194: 8 | C194: float16 | D194: 0.9.2 | E194: V0 | F194: 否 | G194: 2048 | H194: 2048 | I194: 16 | J194: 6271.2 | K194: 53.22 | L194: 284.39 | M194: 568.64 | N194: 115.22 | O194: =L194/I194 -> 17.774375 | P194: =1000/K194 -> 18.7899286 | S194: 2026.02 | T194: 刘玉升
A195: DeepSeek-R1-Distill-Llama-70B | B195: 8 | C195: float16 | D195: 0.9.2 | E195: V0 | F195: 否 | G195: 2048 | H195: 2048 | I195: 32 | J195: 9767.13 | K195: 60.49 | L195: 490.53 | M195: 980.81 | N195: 133.6 | O195: 15.3290625 | P195: 16.53165813 | S195: 2026.02 | T195: 刘玉升
A196: DeepSeek-R1-Distill-Llama-70B | B196: 8 | C196: float16 | D196: 0.9.2 | E196: V0 | F196: 否 | G196: 2048 | H196: 2048 | I196: 64 | J196: 16390.39 | K196: 79.93 | L196: 728.04 | M196: 1455.72 | N196: 180.03 | O196: 11.375625 | P196: 12.51094708 | S196: 2026.02 | T196: 刘玉升
A197: DeepSeek-R1-Distill-Llama-70B | B197: 8 | C197: float16 | D197: 0.9.2 | E197: V0 | F197: 否 | G197: 2048 | H197: 2048 | I197: 128 | J197: 29579 | K197: 120.84 | L197: 946.49 | M197: 1892.13 | N197: 276.96 | O197: 7.394453125 | P197: 8.275405495 | S197: 2026.02 | T197: 刘玉升
A198: DeepSeek-R1-Distill-Llama-70B | B198: 8 | C198: float16 | D198: 0.9.2 | E198: V0 | F198: 否 | G198: 4096 | H198: 1024 | I198: 1 | J198: 901.2 | K198: 37.3 | L198: 26.22 | M198: 131.06 | N198: 39.06 | O198: 26.22 | P198: 26.80965147 | S198: 2026.02 | T198: 刘玉升
A199: DeepSeek-R1-Distill-Llama-70B | B199: 8 | C199: float16 | D199: 0.9.2 | E199: V0 | F199: 否 | G199: 4096 | H199: 1024 | I199: 4 | J199: 2796.95 | K199: 48.81 | L199: 77.68 | M199: 388.3 | N199: 52.73 | O199: 19.42 | P199: 20.487605 | S199: 2026.02 | T199: 刘玉升
A200: DeepSeek-R1-Distill-Llama-70B | B200: 8 | C200: float16 | D200: 0.9.2 | E200: V0 | F200: 否 | G200: 4096 | H200: 1024 | I200: 8 | J200: 5989.76 | K200: 61.48 | L200: 118.91 | M200: 594.45 | N200: 68.89 | O200: 14.86375 | P200: 16.26545218 | S200: 2026.02 | T200: 刘玉升
... 596 more rows

Sheet Qwen3系列
A1: 模型 | B1: 卡数 | C1: 数据类型 | D1: vLLM版本 | E1: V0/V1 Engine | F1: Prefix Caching开启 | G1: 输入长度 (tokens) | H1: 输出长度 (tokens) | I1: 并发数 | J1: 平均首字延时 TTFT(ms) | K1: 平均生成时间 TPOT(ms) | L1: 生成吞吐量 (tokens/s) | M1: 总吞吐量(tokens/s) | N1: 总耗时 （s) | O1: 单并发Output吞吐 (tokens/s） | P1: 单并发Decode吞吐（tokens/s) | Q1: 镜像 | R1: 硬件平台 | S1: 数据日期 | T1: 数据提供者 | U1: 备注
A2: Qwen3-32B | B2: 2 | C2: float16 | D2: 0.9.2 | E2: V0 | F2: 否 | G2: 512 | H2: 512 | I2: 1 | J2: 176.97 | K2: 45.9 | L2: 21.67 | M2: 43.33 | N2: 23.63 | O2: =L2/I2 -> 21.67 | P2: =1000/K2 -> 21.78649237 | Q2: vllm:0.9.2-ubuntu22.04-dtk25.04.2-1226-das1.7-py3.10-20251226 | R2: Hygon C86 7490 64-core Processor*2 /DDR5 4800 64G*24 /480G 2.5 SATA 6Gb R SSD*2 /960G 2.5 SATA 6Gb R SSD*4/7.68T*4/BCM 9560-8i Tri-Mode RAID x1/双口1G RJ45网卡x1/DCU K100-AI x8(120CU)/MLX MCX653105A-HDAT 1-port 200G HDR QSFP56 HCA*1/2700W电源模块*4 | S2: 2026.2 | T2: 刘玉升
A3: Qwen3-32B | B3: 2 | C3: float16 | D3: 0.9.2 | E3: V0 | F3: 否 | G3: 512 | H3: 512 | I3: 4 | J3: 454.44 | K3: 52.1 | L3: 75.63 | M3: 151.27 | N3: 27.08 | O3: 18.9075 | P3: 19.19385797 | S3: 2026.2 | T3: 刘玉升
A4: Qwen3-32B | B4: 2 | C4: float16 | D4: 0.9.2 | E4: V0 | F4: 否 | G4: 512 | H4: 512 | I4: 8 | J4: 802.95 | K4: 54.34 | L4: 143.35 | M4: 286.66 | N4: 28.57 | O4: 17.91875 | P4: 18.40264998 | S4: 2026.2 | T4: 刘玉升
A5: Qwen3-32B | B5: 2 | C5: float16 | D5: 0.9.2 | E5: V0 | F5: 否 | G5: 512 | H5: 512 | I5: 16 | J5: 1384.61 | K5: 61.67 | L5: 248.97 | M5: 497.88 | N5: 32.9 | O5: 15.560625 | P5: 16.21533971 | S5: 2026.2 | T5: 刘玉升
A6: Qwen3-32B | B6: 2 | C6: float16 | D6: 0.9.2 | E6: V0 | F6: 否 | G6: 512 | H6: 512 | I6: 32 | J6: 2902.73 | K6: 76.78 | L6: 388.73 | M6: 777.42 | N6: 42.15 | O6: 12.1478125 | P6: 13.02422506 | S6: 2026.2 | T6: 刘玉升
A7: Qwen3-32B | B7: 2 | C7: float16 | D7: 0.9.2 | E7: V0 | F7: 否 | G7: 512 | H7: 512 | I7: 64 | J7: 5880.23 | K7: 112.24 | L7: 518.06 | M7: 1036.1 | N7: 63.25 | O7: 8.0946875 | P7: 8.909479686 | S7: 2026.2 | T7: 刘玉升
A8: Qwen3-32B | B8: 2 | C8: float16 | D8: 0.9.2 | E8: V0 | F8: 否 | G8: 512 | H8: 512 | I8: 128 | J8: 11902.67 | K8: 175.38 | L8: 645.35 | M8: 1290.47 | N8: 101.55 | O8: 5.041796875 | P8: 5.701904436 | S8: 2026.2 | T8: 刘玉升
A9: Qwen3-32B | B9: 2 | C9: float16 | D9: 0.9.2 | E9: V0 | F9: 否 | G9: 1024 | H9: 1024 | I9: 1 | J9: 288.78 | K9: 46.08 | L9: 21.59 | M9: 43.18 | N9: 47.43 | O9: 21.59 | P9: 21.70138889 | S9: 2026.2 | T9: 刘玉升
A10: Qwen3-32B | B10: 2 | C10: float16 | D10: 0.9.2 | E10: V0 | F10: 否 | G10: 1024 | H10: 1024 | I10: 4 | J10: 804.01 | K10: 52.25 | L10: 75.5 | M10: 151 | N10: 54.25 | O10: 18.875 | P10: 19.13875598 | S10: 2026.2 | T10: 刘玉升
A11: Qwen3-32B | B11: 2 | C11: float16 | D11: 0.9.2 | E11: V0 | F11: 否 | G11: 1024 | H11: 1024 | I11: 8 | J11: 1453.22 | K11: 55.25 | L11: 141.3 | M11: 282.57 | N11: 57.98 | O11: 17.6625 | P11: 18.09954751 | S11: 2026.2 | T11: 刘玉升
A12: Qwen3-32B | B12: 2 | C12: float16 | D12: 0.9.2 | E12: V0 | F12: 否 | G12: 1024 | H12: 1024 | I12: 16 | J12: 2442.28 | K12: 62.21 | L12: 247.91 | M12: 495.51 | N12: 66.09 | O12: 15.494375 | P12: 16.07458608 | S12: 2026.2 | T12: 刘玉升
A13: Qwen3-32B | B13: 2 | C13: float16 | D13: 0.9.2 | E13: V0 | F13: 否 | G13: 1024 | H13: 1024 | I13: 32 | J13: 5866.68 | K13: 77.66 | L13: 384.04 | M13: 767.83 | N13: 85.33 | O13: 12.00125 | P13: 12.87664177 | S13: 2026.2 | T13: 刘玉升
A14: Qwen3-32B | B14: 2 | C14: float16 | D14: 0.9.2 | E14: V0 | F14: 否 | G14: 1024 | H14: 1024 | I14: 64 | J14: 8808.37 | K14: 115.53 | L14: 515.98 | M14: 1030.2 | N14: 127.01 | O14: 8.0621875 | P14: 8.655760409 | S14: 2026.2 | T14: 刘玉升
A15: Qwen3-32B | B15: 2 | C15: float16 | D15: 0.9.2 | E15: V0 | F15: 否 | G15: 1024 | H15: 1024 | I15: 128 | J15: 14892.29 | K15: 185.3 | L15: 555.32 | M15: 1109.26 | N15: 236.03 | O15: 4.3384375 | P15: 5.396654074 | S15: 2026.2 | T15: 刘玉升
A16: Qwen3-32B | B16: 2 | C16: float16 | D16: 0.9.2 | E16: V0 | F16: 否 | G16: 2048 | H16: 2048 | I16: 1 | J16: 464.64 | K16: 46.32 | L16: 21.49 | M16: 42.99 | N16: 95.29 | O16: 21.49 | P16: 21.58894646 | S16: 2026.2 | T16: 刘玉升
A17: Qwen3-32B | B17: 2 | C17: float16 | D17: 0.9.2 | E17: V0 | F17: 否 | G17: 2048 | H17: 2048 | I17: 4 | J17: 1573.62 | K17: 52.66 | L17: 74.91 | M17: 149.82 | N17: 109.36 | O17: 18.7275 | P17: 18.98974554 | S17: 2026.2 | T17: 刘玉升
A18: Qwen3-32B | B18: 2 | C18: float16 | D18: 0.9.2 | E18: V0 | F18: 否 | G18: 2048 | H18: 2048 | I18: 8 | J18: 2481.68 | K18: 55.09 | L18: 142.14 | M18: 283.86 | N18: 115.26 | O18: 17.7675 | P18: 18.15211472 | S18: 2026.2 | T18: 刘玉升
A19: Qwen3-32B | B19: 2 | C19: float16 | D19: 0.9.2 | E19: V0 | F19: 否 | G19: 2048 | H19: 2048 | I19: 16 | J19: 5452.44 | K19: 62.36 | L19: 246.17 | M19: 490.71 | N19: 133.11 | O19: 15.385625 | P19: 16.03592046 | S19: 2026.2 | T19: 刘玉升
A20: Qwen3-32B | B20: 2 | C20: float16 | D20: 0.9.2 | E20: V0 | F20: 否 | G20: 2048 | H20: 2048 | I20: 32 | J20: 9032.37 | K20: 79.95 | L20: 379.46 | M20: 757.35 | N20: 172.71 | O20: 11.858125 | P20: 12.50781739 | S20: 2026.2 | T20: 刘玉升
A21: Qwen3-32B | B21: 2 | C21: float16 | D21: 0.9.2 | E21: V0 | F21: 否 | G21: 2048 | H21: 2048 | I21: 64 | J21: 15118.27 | K21: 119.18 | L21: 423.68 | M21: 845.52 | N21: 309.37 | O21: 6.62 | P21: 8.390669575 | S21: 2026.2 | T21: 刘玉升
A22: Qwen3-32B | B22: 2 | C22: float16 | D22: 0.9.2 | E22: V0 | F22: 否 | G22: 2048 | H22: 2048 | I22: 128 | J22: 90042.07 | K22: 161.86 | L22: 454.12 | M22: 906.77 | N22: 577.25 | O22: 3.5478125 | P22: 6.178178673 | S22: 2026.2 | T22: 刘玉升
A23: Qwen3-32B | B23: 2 | C23: float16 | D23: 0.9.2 | E23: V0 | F23: 否 | G23: 4096 | H23: 1024 | I23: 1 | J23: 850.89 | K23: 46.32 | L23: 21.23 | M23: 106.15 | N23: 48.23 | O23: 21.23 | P23: 21.58894646 | S23: 2026.2 | T23: 刘玉升
A24: Qwen3-32B | B24: 2 | C24: float16 | D24: 0.9.2 | E24: V0 | F24: 否 | G24: 4096 | H24: 1024 | I24: 4 | J24: 2465.56 | K24: 53.28 | L24: 71.89 | M24: 359.31 | N24: 56.98 | O24: 17.9725 | P24: 18.76876877 | S24: 2026.2 | T24: 刘玉升
A25: Qwen3-32B | B25: 2 | C25: float16 | D25: 0.9.2 | E25: V0 | F25: 否 | G25: 4096 | H25: 1024 | I25: 8 | J25: 5683.7 | K25: 57.59 | L25: 126.81 | M25: 633.93 | N25: 64.6 | O25: 15.85125 | P25: 17.36412572 | S25: 2026.2 | T25: 刘玉升
A26: Qwen3-32B | B26: 2 | C26: float16 | D26: 0.9.2 | E26: V0 | F26: 否 | G26: 4096 | H26: 1024 | I26: 16 | J26: 9209.31 | K26: 68.8 | L26: 205.82 | M26: 1027.21 | N26: 79.6 | O26: 12.86375 | P26: 14.53488372 | S26: 2026.2 | T26: 刘玉升
A27: Qwen3-32B | B27: 2 | C27: float16 | D27: 0.9.2 | E27: V0 | F27: 否 | G27: 4096 | H27: 1024 | I27: 32 | J27: 15710.93 | K27: 93.86 | L27: 293.26 | M27: 1464.95 | N27: 111.74 | O27: 9.164375 | P27: 10.65416578 | S27: 2026.2 | T27: 刘玉升
A28: Qwen3-32B | B28: 2 | C28: float16 | D28: 0.9.2 | E28: V0 | F28: 否 | G28: 4096 | H28: 1024 | I28: 64 | J28: 53547.36 | K28: 119.47 | L28: 273.97 | M28: 1368.04 | N28: 239.21 | O28: 4.28078125 | P28: 8.370302168 | S28: 2026.2 | T28: 刘玉升
A29: Qwen3-32B | B29: 2 | C29: float16 | D29: 0.9.2 | E29: V0 | F29: 否 | G29: 4096 | H29: 1024 | I29: 128 | J29: 157797.52 | K29: 125.96 | L29: 306.46 | M29: 1530.44 | N29: 427.7 | O29: 2.39421875 | P29: 7.939028263 | S29: 2026.2 | T29: 刘玉升
A30: Qwen3-32B | B30: 2 | C30: float16 | D30: 0.9.2 | E30: V0 | F30: 否 | G30: 16384 | H30: 1024 | I30: 1 | J30: 4020.2 | K30: 46.65 | L30: 19.79 | M30: 336.4 | N30: 51.75 | O30: 19.79 | P30: 21.43622722 | S30: 2026.2 | T30: 刘玉升
A31: Qwen3-32B | B31: 2 | C31: float16 | D31: 0.9.2 | E31: V0 | F31: 否 | G31: 16384 | H31: 1024 | I31: 4 | J31: 10932.39 | K31: 62.79 | L31: 54.49 | M31: 926.33 | N31: 75.17 | O31: 13.6225 | P31: 15.92610288 | S31: 2026.2 | T31: 刘玉升
A32: Qwen3-32B | B32: 2 | C32: float16 | D32: 0.9.2 | E32: V0 | F32: 否 | G32: 16384 | H32: 1024 | I32: 8 | J32: 19278.76 | K32: 77.68 | L32: 82.96 | M32: 1410.3 | N32: 98.75 | O32: 10.37 | P32: 12.87332647 | S32: 2026.2 | T32: 刘玉升
A33: Qwen3-32B | B33: 2 | C33: float16 | D33: 0.9.2 | E33: V0 | F33: 否 | G33: 16384 | H33: 1024 | I33: 16 | J33: 55591.6 | K33: 87.82 | L33: 80.78 | M33: 1373.27 | N33: 202.82 | O33: 5.04875 | P33: 11.38692781 | S33: 2026.2 | T33: 刘玉升
A34: Qwen3-32B | B34: 2 | C34: float16 | D34: 0.9.2 | E34: V0 | F34: 否 | G34: 16384 | H34: 1024 | I34: 32 | J34: 138053 | K34: 93.36 | L34: 91.95 | M34: 1563.12 | N34: 356.38 | O34: 2.8734375 | P34: 10.71122536 | S34: 2026.2 | T34: 刘玉升
A35: Qwen3-32B | B35: 2 | C35: float16 | D35: 0.9.2 | E35: V0 | F35: 否 | G35: 16384 | H35: 1024 | I35: 64 | J35: 308965.55 | K35: 96.39 | L35: 91.24 | M35: 1551.01 | N35: 718.32 | O35: 1.425625 | P35: 10.37452018 | S35: 2026.2 | T35: 刘玉升
A36: Qwen3-32B | B36: 2 | C36: float16 | D36: 0.9.2 | E36: V0 | F36: 否 | G36: 16384 | H36: 1024 | I36: 128 | J36: 653254.35 | K36: 98.22 | L36: 94.2 | M36: 1601.45 | N36: 1391.38 | O36: 0.7359375 | P36: 10.18122582 | S36: 2026.2 | T36: 刘玉升
A37: Qwen3-32B | B37: 4 | C37: float16 | D37: 0.9.2 | E37: V0 | F37: 否 | G37: 512 | H37: 512 | I37: 1 | J37: 123.59 | K37: 27.86 | L37: 35.65 | M37: 71.3 | N37: 14.36 | O37: 35.65 | P37: 35.89375449 | S37: 2026.2 | T37: 刘玉升
A38: Qwen3-32B | B38: 4 | C38: float16 | D38: 0.9.2 | E38: V0 | F38: 否 | G38: 512 | H38: 512 | I38: 4 | J38: 328.2 | K38: 36.96 | L38: 106.57 | M38: 213.14 | N38: 19.22 | O38: 26.6425 | P38: 27.05627706 | S38: 2026.2 | T38: 刘玉升
A39: Qwen3-32B | B39: 4 | C39: float16 | D39: 0.9.2 | E39: V0 | F39: 否 | G39: 512 | H39: 512 | I39: 8 | J39: 533.07 | K39: 37.94 | L39: 205.59 | M39: 411.12 | N39: 19.92 | O39: 25.69875 | P39: 26.35740643 | S39: 2026.2 | T39: 刘玉升
A40: Qwen3-32B | B40: 4 | C40: float16 | D40: 0.9.2 | E40: V0 | F40: 否 | G40: 512 | H40: 512 | I40: 16 | J40: 1072.69 | K40: 39.16 | L40: 388.48 | M40: 776.87 | N40: 21.09 | O40: 24.28 | P40: 25.53626149 | S40: 2026.2 | T40: 刘玉升
A41: Qwen3-32B | B41: 4 | C41: float16 | D41: 0.9.2 | E41: V0 | F41: 否 | G41: 512 | H41: 512 | I41: 32 | J41: 2123.85 | K41: 49.28 | L41: 599.81 | M41: 1199.56 | N41: 27.32 | O41: 18.7440625 | P41: 20.29220779 | S41: 2026.2 | T41: 刘玉升
A42: Qwen3-32B | B42: 4 | C42: float16 | D42: 0.9.2 | E42: V0 | F42: 否 | G42: 512 | H42: 512 | I42: 64 | J42: 4070.11 | K42: 68.21 | L42: 841.48 | M42: 1682.9 | N42: 38.94 | O42: 13.148125 | P42: 14.66060695 | S42: 2026.2 | T42: 刘玉升
A43: Qwen3-32B | B43: 4 | C43: float16 | D43: 0.9.2 | E43: V0 | F43: 否 | G43: 512 | H43: 512 | I43: 128 | J43: 8437.1 | K43: 107.86 | L43: 1030.58 | M43: 2060.8 | N43: 63.59 | O43: 8.05140625 | P43: 9.271277582 | S43: 2026.2 | T43: 刘玉升
A44: Qwen3-32B | B44: 4 | C44: float16 | D44: 0.9.2 | E44: V0 | F44: 否 | G44: 1024 | H44: 1024 | I44: 1 | J44: 203.08 | K44: 28.67 | L44: 34.67 | M44: 69.33 | N44: 29.54 | O44: 34.67 | P44: 34.87966516 | S44: 2026.2 | T44: 刘玉升
A45: Qwen3-32B | B45: 4 | C45: float16 | D45: 0.9.2 | E45: V0 | F45: 否 | G45: 1024 | H45: 1024 | I45: 4 | J45: 531.21 | K45: 38.23 | L45: 103.31 | M45: 206.62 | N45: 39.65 | O45: 25.8275 | P45: 26.15746796 | S45: 2026.2 | T45: 刘玉升
A46: Qwen3-32B | B46: 4 | C46: float16 | D46: 0.9.2 | E46: V0 | F46: 否 | G46: 1024 | H46: 1024 | I46: 8 | J46: 971.8 | K46: 38.67 | L46: 202.1 | M46: 404.18 | N46: 40.53 | O46: 25.2625 | P46: 25.85983967 | S46: 2026.2 | T46: 刘玉升
A47: Qwen3-32B | B47: 4 | C47: float16 | D47: 0.9.2 | E47: V0 | F47: 否 | G47: 1024 | H47: 1024 | I47: 16 | J47: 2058.44 | K47: 40.8 | L47: 374.06 | M47: 747.67 | N47: 43.8 | O47: 23.37875 | P47: 24.50980392 | S47: 2026.2 | T47: 刘玉升
A48: Qwen3-32B | B48: 4 | C48: float16 | D48: 0.9.2 | E48: V0 | F48: 否 | G48: 1024 | H48: 1024 | I48: 32 | J48: 4143.6 | K48: 51.16 | L48: 580.12 | M48: 1159.88 | N48: 56.48 | O48: 18.12875 | P48: 19.54652072 | S48: 2026.2 | T48: 刘玉升
A49: Qwen3-32B | B49: 4 | C49: float16 | D49: 0.9.2 | E49: V0 | F49: 否 | G49: 1024 | H49: 1024 | I49: 64 | J49: 6369.57 | K49: 71.99 | L49: 818.92 | M49: 1635.04 | N49: 80.03 | O49: 12.795625 | P49: 13.89081817 | S49: 2026.2 | T49: 刘玉升
A50: Qwen3-32B | B50: 4 | C50: float16 | D50: 0.9.2 | E50: V0 | F50: 否 | G50: 1024 | H50: 1024 | I50: 128 | J50: 10558.5 | K50: 115.59 | L50: 1017.32 | M50: 2032.11 | N50: 128.84 | O50: 7.9478125 | P50: 8.651267411 | S50: 2026.2 | T50: 刘玉升
A51: Qwen3-32B | B51: 4 | C51: float16 | D51: 0.9.2 | E51: V0 | F51: 否 | G51: 2048 | H51: 2048 | I51: 1 | J51: 334.5 | K51: 29.66 | L51: 33.54 | M51: 67.09 | N51: 61.05 | O51: 33.54 | P51: 33.71544167 | S51: 2026.2 | T51: 刘玉升
A52: Qwen3-32B | B52: 4 | C52: float16 | D52: 0.9.2 | E52: V0 | F52: 否 | G52: 2048 | H52: 2048 | I52: 4 | J52: 982.1 | K52: 38.56 | L52: 102.51 | M52: 205.02 | N52: 79.92 | O52: 25.6275 | P52: 25.93360996 | S52: 2026.2 | T52: 刘玉升
A53: Qwen3-32B | B53: 4 | C53: float16 | D53: 0.9.2 | E53: V0 | F53: 否 | G53: 2048 | H53: 2048 | I53: 8 | J53: 1977.55 | K53: 38.88 | L53: 200.87 | M53: 401.14 | N53: 81.57 | O53: 25.10875 | P53: 25.72016461 | S53: 2026.2 | T53: 刘玉升
A54: Qwen3-32B | B54: 4 | C54: float16 | D54: 0.9.2 | E54: V0 | F54: 否 | G54: 2048 | H54: 2048 | I54: 16 | J54: 4059.75 | K54: 42.12 | L54: 362.96 | M54: 723.5 | N54: 90.28 | O54: 22.685 | P54: 23.74169041 | S54: 2026.2 | T54: 刘玉升
A55: Qwen3-32B | B55: 4 | C55: float16 | D55: 0.9.2 | E55: V0 | F55: 否 | G55: 2048 | H55: 2048 | I55: 32 | J55: 6342.16 | K55: 53.1 | L55: 569.66 | M55: 1136.95 | N55: 115.04 | O55: 17.801875 | P55: 18.83239171 | S55: 2026.2 | T55: 刘玉升
A56: Qwen3-32B | B56: 4 | C56: float16 | D56: 0.9.2 | E56: V0 | F56: 否 | G56: 2048 | H56: 2048 | I56: 64 | J56: 10700.99 | K56: 74.71 | L56: 800.98 | M56: 1598.47 | N56: 163.64 | O56: 12.5153125 | P56: 13.38508901 | S56: 2026.2 | T56: 刘玉升
A57: Qwen3-32B | B57: 4 | C57: float16 | D57: 0.9.2 | E57: V0 | F57: 否 | G57: 2048 | H57: 2048 | I57: 128 | J57: 19565.96 | K57: 117.48 | L57: 1007.95 | M57: 2012.64 | N57: 260.08 | O57: 7.874609375 | P57: 8.512087164 | S57: 2026.2 | T57: 刘玉升
A58: Qwen3-32B | B58: 4 | C58: float16 | D58: 0.9.2 | E58: V0 | F58: 否 | G58: 4096 | H58: 1024 | I58: 1 | J58: 602.54 | K58: 29.94 | L58: 32.78 | M58: 163.92 | N58: 31.23 | O58: 32.78 | P58: 33.4001336 | S58: 2026.2 | T58: 刘玉升
A59: Qwen3-32B | B59: 4 | C59: float16 | D59: 0.9.2 | E59: V0 | F59: 否 | G59: 4096 | H59: 1024 | I59: 4 | J59: 1879.4 | K59: 39.55 | L59: 96.75 | M59: 483.55 | N59: 42.34 | O59: 24.1875 | P59: 25.28445006 | S59: 2026.2 | T59: 刘玉升
A60: Qwen3-32B | B60: 4 | C60: float16 | D60: 0.9.2 | E60: V0 | F60: 否 | G60: 4096 | H60: 1024 | I60: 8 | J60: 3958.59 | K60: 40.25 | L60: 181.5 | M60: 907.32 | N60: 45.14 | O60: 22.6875 | P60: 24.8447205 | S60: 2026.2 | T60: 刘玉升
A61: Qwen3-32B | B61: 4 | C61: float16 | D61: 0.9.2 | E61: V0 | F61: 否 | G61: 4096 | H61: 1024 | I61: 16 | J61: 6404.42 | K61: 47.33 | L61: 298.82 | M61: 1491.34 | N61: 54.83 | O61: 18.67625 | P61: 21.12824847 | S61: 2026.2 | T61: 刘玉升
A62: Qwen3-32B | B62: 4 | C62: float16 | D62: 0.9.2 | E62: V0 | F62: 否 | G62: 4096 | H62: 1024 | I62: 32 | J62: 10905.85 | K62: 62.58 | L62: 437.27 | M62: 2184.32 | N62: 74.94 | O62: 13.6646875 | P62: 15.97954618 | S62: 2026.2 | T62: 刘玉升
A63: Qwen3-32B | B63: 4 | C63: float16 | D63: 0.9.2 | E63: V0 | F63: 否 | G63: 4096 | H63: 1024 | I63: 64 | J63: 19714.78 | K63: 93.57 | L63: 567.63 | M63: 2834.48 | N63: 115.45 | O63: 8.86921875 | P63: 10.68718606 | S63: 2026.2 | T63: 刘玉升
A64: Qwen3-32B | B64: 4 | C64: float16 | D64: 0.9.2 | E64: V0 | F64: 否 | G64: 4096 | H64: 1024 | I64: 128 | J64: 37226.8 | K64: 155.99 | L64: 665.88 | M64: 3325.37 | N64: 196.84 | O64: 5.2021875 | P64: 6.41066735 | S64: 2026.2 | T64: 刘玉升
A65: Qwen3-32B | B65: 4 | C65: float16 | D65: 0.9.2 | E65: V0 | F65: 否 | G65: 16384 | H65: 1024 | I65: 1 | J65: 2662.75 | K65: 30.47 | L65: 30.26 | M65: 514.48 | N65: 33.84 | O65: 30.26 | P65: 32.81916639 | S65: 2026.2 | T65: 刘玉升
A66: Qwen3-32B | B66: 4 | C66: float16 | D66: 0.9.2 | E66: V0 | F66: 否 | G66: 16384 | H66: 1024 | I66: 4 | J66: 7197.02 | K66: 42.74 | L66: 80.43 | M66: 1367.33 | N66: 50.93 | O66: =L66/I66 -> 20.1075 | P66: =1000/K66 -> 23.39728591 | S66: 2026.2 | T66: 刘玉升
A67: Qwen3-32B | B67: 4 | C67: float16 | D67: 0.9.2 | E67: V0 | F67: 否 | G67: 16384 | H67: 1024 | I67: 8 | J67: 12649.17 | K67: 53.17 | L67: 122.19 | M67: 2077.25 | N67: 67.04 | O67: 15.27375 | P67: 18.80759827 | S67: 2026.2 | T67: 刘玉升
A68: Qwen3-32B | B68: 4 | C68: float16 | D68: 0.9.2 | E68: V0 | F68: 否 | G68: 16384 | H68: 1024 | I68: 16 | J68: 23048.76 | K68: 72.72 | L68: 168.13 | M68: 2858.18 | N68: 97.45 | O68: 10.508125 | P68: 13.75137514 | S68: 2026.2 | T68: 刘玉升
A69: Qwen3-32B | B69: 4 | C69: float16 | D69: 0.9.2 | E69: V0 | F69: 否 | G69: 16384 | H69: 1024 | I69: 32 | J69: 43600.36 | K69: 113.86 | L69: 204.68 | M69: 3479.59 | N69: 160.09 | O69: 6.39625 | P69: 8.782715616 | S69: 2026.2 | T69: 刘玉升
A70: Qwen3-32B | B70: 4 | C70: float16 | D70: 0.9.2 | E70: V0 | F70: 否 | G70: 16384 | H70: 1024 | I70: 64 | J70: 119675.96 | K70: 124.82 | L70: 199.3 | M70: 3388.12 | N70: 328.83 | O70: 3.1140625 | P70: 8.011536613 | S70: 2026.2 | T70: 刘玉升
A71: Qwen3-32B | B71: 4 | C71: float16 | D71: 0.9.2 | E71: V0 | F71: 否 | G71: 16384 | H71: 1024 | I71: 128 | J71: 274139.39 | K71: 137.23 | L71: 197.74 | M71: 3361.52 | N71: 662.86 | O71: 1.54484375 | P71: 7.287036362 | S71: 2026.2 | T71: 刘玉升
A72: Qwen3-14B | B72: 1 | C72: float16 | D72: 0.9.2 | E72: V0 | F72: 否 | G72: 512 | H72: 512 | I72: 1 | J72: 142.24 | K72: 47.4 | L72: 21.02 | M72: 42.03 | N72: 24.36 | O72: 21.02 | P72: 21.09704641 | Q72: vllm:0.9.2-ubuntu22.04-dtk25.04.2-1226-das1.7-py3.10-20251226 | R72: Hygon C86 7490 64-core Processor*2 /DDR5 4800 64G*24 /480G 2.5 SATA 6Gb R SSD*2 /960G 2.5 SATA 6Gb R SSD*4/7.68T*4/BCM 9560-8i Tri-Mode RAID x1/双口1G RJ45网卡x1/DCU K100-AI x8(120CU)/MLX MCX653105A-HDAT 1-port 200G HDR QSFP56 HCA*1/2700W电源模块*4 | S72: 2026.2 | T72: 刘玉升
A73: Qwen3-14B | B73: 1 | C73: float16 | D73: 0.9.2 | E73: V0 | F73: 否 | G73: 512 | H73: 512 | I73: 4 | J73: 322.17 | K73: 48.37 | L73: 81.79 | M73: 163.59 | N73: 25.04 | O73: 20.4475 | P73: 20.67397147 | S73: 2026.2 | T73: 刘玉升
A74: Qwen3-14B | B74: 1 | C74: float16 | D74: 0.9.2 | E74: V0 | F74: 否 | G74: 512 | H74: 512 | I74: 8 | J74: 575.93 | K74: 50.57 | L74: 155.03 | M74: 310.02 | N74: 26.42 | O74: 19.37875 | P74: 19.7745699 | S74: 2026.2 | T74: 刘玉升
A75: Qwen3-14B | B75: 1 | C75: float16 | D75: 0.9.2 | E75: V0 | F75: 否 | G75: 512 | H75: 512 | I75: 16 | J75: 1031.71 | K75: 56.53 | L75: 273.77 | M75: 547.48 | N75: 29.92 | O75: 17.110625 | P75: 17.68972227 | S75: 2026.2 | T75: 刘玉升
A76: Qwen3-14B | B76: 1 | C76: float16 | D76: 0.9.2 | E76: V0 | F76: 否 | G76: 512 | H76: 512 | I76: 32 | J76: 2192.92 | K76: 65.62 | L76: 458.48 | M76: 916.91 | N76: 35.74 | O76: 14.3275 | P76: 15.23925632 | S76: 2026.2 | T76: 刘玉升
A77: Qwen3-14B | B77: 1 | C77: float16 | D77: 0.9.2 | E77: V0 | F77: 否 | G77: 512 | H77: 512 | I77: 64 | J77: 4506.95 | K77: 96.38 | L77: 609.37 | M77: 1218.69 | N77: 53.77 | O77: 9.52140625 | P77: 10.3755966 | S77: 2026.2 | T77: 刘玉升
A78: Qwen3-14B | B78: 1 | C78: float16 | D78: 0.9.2 | E78: V0 | F78: 否 | G78: 512 | H78: 512 | I78: 128 | J78: 6851.55 | K78: 171.56 | L78: 693.17 | M78: 1386.09 | N78: 94.55 | O78: 5.415390625 | P78: 5.828864537 | S78: 2026.2 | T78: 刘玉升
A79: Qwen3-14B | B79: 1 | C79: float16 | D79: 0.9.2 | E79: V0 | F79: 否 | G79: 1024 | H79: 1024 | I79: 1 | J79: 207.23 | K79: 47.49 | L79: 20.99 | M79: 41.98 | N79: 48.79 | O79: 20.99 | P79: 21.05706465 | S79: 2026.2 | T79: 刘玉升
A80: Qwen3-14B | B80: 1 | C80: float16 | D80: 0.9.2 | E80: V0 | F80: 否 | G80: 1024 | H80: 1024 | I80: 4 | J80: 579.92 | K80: 48.68 | L80: 81.3 | M80: 162.59 | N80: 50.38 | O80: 20.325 | P80: 20.54231717 | S80: 2026.2 | T80: 刘玉升
A81: Qwen3-14B | B81: 1 | C81: float16 | D81: 0.9.2 | E81: V0 | F81: 否 | G81: 1024 | H81: 1024 | I81: 8 | J81: 1117.81 | K81: 50.93 | L81: 153.92 | M81: 307.83 | N81: 53.22 | O81: 19.24 | P81: 19.63479285 | S81: 2026.2 | T81: 刘玉升
A82: Qwen3-14B | B82: 1 | C82: float16 | D82: 0.9.2 | E82: V0 | F82: 否 | G82: 1024 | H82: 1024 | I82: 16 | J82: 1786.24 | K82: 57.23 | L82: 271.55 | M82: 542.76 | N82: 60.34 | O82: 16.971875 | P82: 17.47335314 | S82: 2026.2 | T82: 刘玉升
A83: Qwen3-14B | B83: 1 | C83: float16 | D83: 0.9.2 | E83: V0 | F83: 否 | G83: 1024 | H83: 1024 | I83: 32 | J83: 4267.2 | K83: 66.86 | L83: 450.92 | M83: 901.56 | N83: 72.67 | O83: 14.09125 | P83: 14.95662579 | S83: 2026.2 | T83: 刘玉升
A84: Qwen3-14B | B84: 1 | C84: float16 | D84: 0.9.2 | E84: V0 | F84: 否 | G84: 1024 | H84: 1024 | I84: 64 | J84: 6634 | K84: 99.52 | L84: 604.24 | M84: 1206.42 | N84: 108.46 | O84: 9.44125 | P84: 10.04823151 | S84: 2026.2 | T84: 刘玉升
A85: Qwen3-14B | B85: 1 | C85: float16 | D85: 0.9.2 | E85: V0 | F85: 否 | G85: 1024 | H85: 1024 | I85: 128 | J85: 11255.27 | K85: 174.8 | L85: 575.56 | M85: 1149.69 | N85: 227.73 | O85: 4.4965625 | P85: 5.720823799 | S85: 2026.2 | T85: 刘玉升
A86: Qwen3-14B | B86: 1 | C86: float16 | D86: 0.9.2 | E86: V0 | F86: 否 | G86: 2048 | H86: 2048 | I86: 1 | J86: 330.6 | K86: 47.55 | L86: 20.97 | M86: 41.94 | N86: 97.66 | O86: 20.97 | P86: 21.03049422 | S86: 2026.2 | T86: 刘玉升
A87: Qwen3-14B | B87: 1 | C87: float16 | D87: 0.9.2 | E87: V0 | F87: 否 | G87: 2048 | H87: 2048 | I87: 4 | J87: 1136.85 | K87: 48.86 | L87: 80.98 | M87: 161.95 | N87: 101.16 | O87: 20.245 | P87: 20.46663938 | S87: 2026.2 | T87: 刘玉升
A88: Qwen3-14B | B88: 1 | C88: float16 | D88: 0.9.2 | E88: V0 | F88: 否 | G88: 2048 | H88: 2048 | I88: 8 | J88: 1703.95 | K88: 51.66 | L88: 152.47 | M88: 304.48 | N88: 107.46 | O88: 19.05875 | P88: 19.35733643 | S88: 2026.2 | T88: 刘玉升
A89: Qwen3-14B | B89: 1 | C89: float16 | D89: 0.9.2 | E89: V0 | F89: 否 | G89: 2048 | H89: 2048 | I89: 16 | J89: 3882.88 | K89: 57.51 | L89: 269.43 | M89: 537.07 | N89: 121.62 | O89: 16.839375 | P89: 17.3882803 | S89: 2026.2 | T89: 刘玉升
A90: Qwen3-14B | B90: 1 | C90: float16 | D90: 0.9.2 | E90: V0 | F90: 否 | G90: 2048 | H90: 2048 | I90: 32 | J90: 6775.57 | K90: 68.22 | L90: 447.56 | M90: 893.25 | N90: 146.43 | O90: 13.98625 | P90: 14.65845793 | S90: 2026.2 | T90: 刘玉升
A91: Qwen3-14B | B91: 1 | C91: float16 | D91: 0.9.2 | E91: V0 | F91: 否 | G91: 2048 | H91: 2048 | I91: 64 | J91: 11397.92 | K91: 103.23 | L91: 463.63 | M91: 925.24 | N91: 282.71 | O91: 7.24421875 | P91: 9.687106461 | S91: 2026.2 | T91: 刘玉升
A92: Qwen3-14B | B92: 1 | C92: float16 | D92: 0.9.2 | E92: V0 | F92: 否 | G92: 2048 | H92: 2048 | I92: 128 | J92: 105452.35 | K92: 131.17 | L92: 467.29 | M92: 933.07 | N92: 560.98 | O92: 3.650703125 | P92: 7.623694442 | S92: 2026.2 | T92: 刘玉升
A93: Qwen3-14B | B93: 1 | C93: float16 | D93: 0.9.2 | E93: V0 | F93: 否 | G93: 4096 | H93: 1024 | I93: 1 | J93: 612.26 | K93: 47.59 | L93: 20.77 | M93: 103.86 | N93: 49.3 | O93: 20.77 | P93: 21.01281782 | S93: 2026.2 | T93: 刘玉升
A94: Qwen3-14B | B94: 1 | C94: float16 | D94: 0.9.2 | E94: V0 | F94: 否 | G94: 4096 | H94: 1024 | I94: 4 | J94: 1776.17 | K94: 50.4 | L94: 76.79 | M94: 383.82 | N94: 53.34 | O94: 19.1975 | P94: 19.84126984 | S94: 2026.2 | T94: 刘玉升
A95: Qwen3-14B | B95: 1 | C95: float16 | D95: 0.9.2 | E95: V0 | F95: 否 | G95: 4096 | H95: 1024 | I95: 8 | J95: 3847.35 | K95: 55.01 | L95: 136.25 | M95: 681.13 | N95: 60.12 | O95: 17.03125 | P95: 18.178513 | S95: 2026.2 | T95: 刘玉升
A96: Qwen3-14B | B96: 1 | C96: float16 | D96: 0.9.2 | E96: V0 | F96: 否 | G96: 4096 | H96: 1024 | I96: 16 | J96: 6906.41 | K96: 64.6 | L96: 224.44 | M96: 1120.1 | N96: 73 | O96: 14.0275 | P96: 15.47987616 | S96: 2026.2 | T96: 刘玉升
A97: Qwen3-14B | B97: 1 | C97: float16 | D97: 0.9.2 | E97: V0 | F97: 否 | G97: 4096 | H97: 1024 | I97: 32 | J97: 11819.19 | K97: 83.25 | L97: 337.84 | M97: 1687.63 | N97: 96.99 | O97: 10.5575 | P97: 12.01201201 | S97: 2026.2 | T97: 刘玉升
A98: Qwen3-14B | B98: 1 | C98: float16 | D98: 0.9.2 | E98: V0 | F98: 否 | G98: 4096 | H98: 1024 | I98: 64 | J98: 50881.81 | K98: 95.27 | L98: 325.98 | M98: 1627.77 | N98: 201.04 | O98: 5.0934375 | P98: 10.49648368 | S98: 2026.2 | T98: 刘玉升
A99: Qwen3-14B | B99: 1 | C99: float16 | D99: 0.9.2 | E99: V0 | F99: 否 | G99: 4096 | H99: 1024 | I99: 128 | J99: 139134.25 | K99: 102.05 | L99: 320.85 | M99: 1602.32 | N99: 408.51 | O99: 2.506640625 | P99: 9.799118079 | S99: 2026.2 | T99: 刘玉升
A100: Qwen3-14B | B100: 1 | C100: float16 | D100: 0.9.2 | E100: V0 | F100: 否 | G100: 16384 | H100: 1024 | I100: 1 | J100: 2961.37 | K100: 47.84 | L100: 19.73 | M100: 335.42 | N100: 51.9 | O100: 19.73 | P100: 20.90301003 | S100: 2026.2 | T100: 刘玉升
A101: Qwen3-14B | B101: 1 | C101: float16 | D101: 0.9.2 | E101: V0 | F101: 否 | G101: 16384 | H101: 1024 | I101: 4 | J101: 8137.64 | K101: 60.67 | L101: 58.34 | M101: 991.84 | N101: 70.2 | O101: 14.585 | P101: 16.48261085 | S101: 2026.2 | T101: 刘玉升
A102: Qwen3-14B | B102: 1 | C102: float16 | D102: 0.9.2 | E102: V0 | F102: 否 | G102: 16384 | H102: 1024 | I102: 8 | J102: 14429.13 | K102: 76.24 | L102: 88.63 | M102: 1506.74 | N102: 92.43 | O102: 11.07875 | P102: 13.11647429 | S102: 2026.2 | T102: 刘玉升
A103: Qwen3-14B | B103: 1 | C103: float16 | D103: 0.9.2 | E103: V0 | F103: 否 | G103: 16384 | H103: 1024 | I103: 16 | J103: 51622.64 | K103: 84.5 | L103: 86.22 | M103: 1465.66 | N103: 190.04 | O103: 5.38875 | P103: 11.83431953 | S103: 2026.2 | T103: 刘玉升
A104: Qwen3-14B | B104: 1 | C104: float16 | D104: 0.9.2 | E104: V0 | F104: 否 | G104: 16384 | H104: 1024 | I104: 32 | J104: 130440.57 | K104: 92.78 | L104: 90.49 | M104: 1538.3 | N104: 362.13 | O104: 2.8278125 | P104: 10.77818495 | S104: 2026.2 | T104: 刘玉升
A105: Qwen3-14B | B105: 1 | C105: float16 | D105: 0.9.2 | E105: V0 | F105: 否 | G105: 16384 | H105: 1024 | I105: 64 | J105: 300188.78 | K105: 92.92 | L105: 91.16 | M105: 1549.67 | N105: 718.94 | O105: 1.424375 | P105: 10.76194576 | S105: 2026.2 | T105: 刘玉升
A106: Qwen3-14B | B106: 1 | C106: float16 | D106: 0.9.2 | E106: V0 | F106: 否 | G106: 16384 | H106: 1024 | I106: 128 | J106: 639321.36 | K106: 93.49 | L106: 94.11 | M106: 1599.95 | N106: 1392.68 | O106: 0.735234375 | P106: 10.69633116 | S106: 2026.2 | T106: 刘玉升
A107: Qwen3-14B | B107: 2 | C107: float16 | D107: 0.9.2 | E107: V0 | F107: 否 | G107: 512 | H107: 512 | I107: 1 | J107: 104.95 | K107: 32.29 | L107: 30.83 | M107: 61.66 | N107: 16.61 | O107: 30.83 | P107: 30.96934035 | S107: 2026.2 | T107: 刘玉升
A108: Qwen3-14B | B108: 2 | C108: float16 | D108: 0.9.2 | E108: V0 | F108: 否 | G108: 512 | H108: 512 | I108: 4 | J108: 228.62 | K108: 32.69 | L108: 120.94 | M108: 241.88 | N108: 16.93 | O108: 30.235 | P108: 30.59039462 | S108: 2026.2 | T108: 刘玉升
A109: Qwen3-14B | B109: 2 | C109: float16 | D109: 0.9.2 | E109: V0 | F109: 否 | G109: 512 | H109: 512 | I109: 8 | J109: 396.34 | K109: 34.12 | L109: 229.65 | M109: 459.23 | N109: 17.84 | O109: 28.70625 | P109: 29.30832356 | S109: 2026.2 | T109: 刘玉升
A110: Qwen3-14B | B110: 2 | C110: float16 | D110: 0.9.2 | E110: V0 | F110: 否 | G110: 512 | H110: 512 | I110: 16 | J110: 638.71 | K110: 37.62 | L110: 412.38 | M110: 824.66 | N110: 19.87 | O110: 25.77375 | P110: 26.58160553 | S110: 2026.2 | T110: 刘玉升
A111: Qwen3-14B | B111: 2 | C111: float16 | D111: 0.9.2 | E111: V0 | F111: 否 | G111: 512 | H111: 512 | I111: 32 | J111: 1448.61 | K111: 43.31 | L111: 694.6 | M111: 1389.12 | N111: 23.59 | O111: 21.70625 | P111: 23.08935581 | S111: 2026.2 | T111: 刘玉升
A112: Qwen3-14B | B112: 2 | C112: float16 | D112: 0.9.2 | E112: V0 | F112: 否 | G112: 512 | H112: 512 | I112: 64 | J112: 2633.7 | K112: 58.66 | L112: 1004.45 | M112: 2008.83 | N112: 32.62 | O112: 15.69453125 | P112: 17.04739175 | S112: 2026.2 | T112: 刘玉升
A113: Qwen3-14B | B113: 2 | C113: float16 | D113: 0.9.2 | E113: V0 | F113: 否 | G113: 512 | H113: 512 | I113: 128 | J113: 4281.22 | K113: 98.18 | L113: 1202.93 | M113: 2405.44 | N113: 54.48 | O113: 9.397890625 | P113: 10.1853738 | S113: 2026.2 | T113: 刘玉升
A114: Qwen3-14B | B114: 2 | C114: float16 | D114: 0.9.2 | E114: V0 | F114: 否 | G114: 1024 | H114: 1024 | I114: 1 | J114: 146.99 | K114: 33.24 | L114: 29.99 | M114: 59.97 | N114: 34.15 | O114: 29.99 | P114: 30.08423586 | S114: 2026.2 | T114: 刘玉升
A115: Qwen3-14B | B115: 2 | C115: float16 | D115: 0.9.2 | E115: V0 | F115: 否 | G115: 1024 | H115: 1024 | I115: 4 | J115: 393.83 | K115: 33.59 | L115: 117.83 | M115: 235.66 | N115: 34.76 | O115: 29.4575 | P115: 29.77076511 | S115: 2026.2 | T115: 刘玉升
A116: Qwen3-14B | B116: 2 | C116: float16 | D116: 0.9.2 | E116: V0 | F116: 否 | G116: 1024 | H116: 1024 | I116: 8 | J116: 617.96 | K116: 35.76 | L116: 220.2 | M116: 440.38 | N116: 37.2 | O116: 27.525 | P116: 27.96420582 | S116: 2026.2 | T116: 刘玉升
A117: Qwen3-14B | B117: 2 | C117: float16 | D117: 0.9.2 | E117: V0 | F117: 否 | G117: 1024 | H117: 1024 | I117: 16 | J117: 1316.71 | K117: 38.7 | L117: 400.47 | M117: 800.45 | N117: 40.91 | O117: 25.029375 | P117: 25.83979328 | S117: 2026.2 | T117: 刘玉升
A118: Qwen3-14B | B118: 2 | C118: float16 | D118: 0.9.2 | E118: V0 | F118: 否 | G118: 1024 | H118: 1024 | I118: 32 | J118: 2783.25 | K118: 44.39 | L118: 679.84 | M118: 1359.25 | N118: 48.2 | O118: 21.245 | P118: 22.52759631 | S118: 2026.2 | T118: 刘玉升
A119: Qwen3-14B | B119: 2 | C119: float16 | D119: 0.9.2 | E119: V0 | F119: 否 | G119: 1024 | H119: 1024 | I119: 64 | J119: 4255.93 | K119: 60.89 | L119: 984.58 | M119: 1965.82 | N119: 66.56 | O119: 15.3840625 | P119: 16.42305797 | S119: 2026.2 | T119: 刘玉升
A120: Qwen3-14B | B120: 2 | C120: float16 | D120: 0.9.2 | E120: V0 | F120: 否 | G120: 1024 | H120: 1024 | I120: 128 | J120: 7104.5 | K120: 100.49 | L120: 1192.26 | M120: 2381.56 | N120: 109.94 | O120: 9.31453125 | P120: 9.951238929 | S120: 2026.2 | T120: 刘玉升
A121: Qwen3-14B | B121: 2 | C121: float16 | D121: 0.9.2 | E121: V0 | F121: 否 | G121: 2048 | H121: 2048 | I121: 1 | J121: 233.74 | K121: 33.01 | L121: 30.21 | M121: 60.41 | N121: 67.8 | O121: 30.21 | P121: 30.29385035 | S121: 2026.2 | T121: 刘玉升
A122: Qwen3-14B | B122: 2 | C122: float16 | D122: 0.9.2 | E122: V0 | F122: 否 | G122: 2048 | H122: 2048 | I122: 4 | J122: 604.28 | K122: 34.29 | L122: 115.72 | M122: 231.44 | N122: 70.79 | O122: 28.93 | P122: 29.16302129 | S122: 2026.2 | T122: 刘玉升
A123: Qwen3-14B | B123: 2 | C123: float16 | D123: 0.9.2 | E123: V0 | F123: 否 | G123: 2048 | H123: 2048 | I123: 8 | J123: 1339.23 | K123: 36.08 | L123: 217.91 | M123: 435.16 | N123: 75.19 | O123: 27.23875 | P123: 27.71618625 | S123: 2026.2 | T123: 刘玉升
A124: Qwen3-14B | B124: 2 | C124: float16 | D124: 0.9.2 | E124: V0 | F124: 否 | G124: 2048 | H124: 2048 | I124: 16 | J124: 2738.12 | K124: 39.67 | L124: 390.36 | M124: 778.12 | N124: 83.94 | O124: 24.3975 | P124: 25.20796572 | S124: 2026.2 | T124: 刘玉升
A125: Qwen3-14B | B125: 2 | C125: float16 | D125: 0.9.2 | E125: V0 | F125: 否 | G125: 2048 | H125: 2048 | I125: 32 | J125: 4267.17 | K125: 45.8 | L125: 668.59 | M125: 1334.4 | N125: 98.02 | O125: 20.8934375 | P125: 21.83406114 | S125: 2026.2 | T125: 刘玉升
A126: Qwen3-14B | B126: 2 | C126: float16 | D126: 0.9.2 | E126: V0 | F126: 否 | G126: 2048 | H126: 2048 | I126: 64 | J126: 7147.33 | K126: 63.3 | L126: 958.61 | M126: 1913.06 | N126: 136.73 | O126: 14.97828125 | P126: 15.79778831 | S126: 2026.2 | T126: 刘玉升
A127: Qwen3-14B | B127: 2 | C127: float16 | D127: 0.9.2 | E127: V0 | F127: 否 | G127: 2048 | H127: 2048 | I127: 128 | J127: 12960.39 | K127: 103.8 | L127: 1162.7 | M127: 2321.63 | N127: 225.46 | O127: 9.08359375 | P127: 9.633911368 | S127: 2026.2 | T127: 刘玉升
A128: Qwen3-14B | B128: 2 | C128: float16 | D128: 0.9.2 | E128: V0 | F128: 否 | G128: 4096 | H128: 1024 | I128: 1 | J128: 415.85 | K128: 33.46 | L128: 29.56 | M128: 147.79 | N128: 34.64 | O128: 29.56 | P128: 29.88643156 | S128: 2026.2 | T128: 刘玉升
A129: Qwen3-14B | B129: 2 | C129: float16 | D129: 0.9.2 | E129: V0 | F129: 否 | G129: 4096 | H129: 1024 | I129: 4 | J129: 1255.53 | K129: 35.22 | L129: 109.85 | M129: 549.01 | N129: 37.29 | O129: 27.4625 | P129: 28.39295855 | S129: 2026.2 | T129: 刘玉升
A130: Qwen3-14B | B130: 2 | C130: float16 | D130: 0.9.2 | E130: V0 | F130: 否 | G130: 4096 | H130: 1024 | I130: 8 | J130: 2669.55 | K130: 38.16 | L130: 196.39 | M130: 981.77 | N130: 41.71 | O130: =L130/I130 -> 24.54875 | P130: =1000/K130 -> 26.20545073 | S130: 2026.2 | T130: 刘玉升
A131: Qwen3-14B | B131: 2 | C131: float16 | D131: 0.9.2 | E131: V0 | F131: 否 | G131: 4096 | H131: 1024 | I131: 16 | J131: 4320.44 | K131: 44.36 | L131: 329.6 | M131: 1644.92 | N131: 49.71 | O131: 20.6 | P131: 22.54283138 | S131: 2026.2 | T131: 刘玉升
A132: Qwen3-14B | B132: 2 | C132: float16 | D132: 0.9.2 | E132: V0 | F132: 否 | G132: 4096 | H132: 1024 | I132: 32 | J132: 7354.44 | K132: 55.41 | L132: 511.64 | M132: 2555.81 | N132: 64.05 | O132: 15.98875 | P132: 18.04728388 | S132: 2026.2 | T132: 刘玉升
A133: Qwen3-14B | B133: 2 | C133: float16 | D133: 0.9.2 | E133: V0 | F133: 否 | G133: 4096 | H133: 1024 | I133: 64 | J133: 13291.14 | K133: 82.2 | L133: 672.84 | M133: 3359.82 | N133: 97.4 | O133: 10.513125 | P133: 12.16545012 | S133: 2026.2 | T133: 刘玉升
A134: Qwen3-14B | B134: 2 | C134: float16 | D134: 0.9.2 | E134: V0 | F134: 否 | G134: 4096 | H134: 1024 | I134: 128 | J134: 25678.5 | K134: 139.23 | L134: 647.06 | M134: 3231.4 | N134: 202.57 | O134: 5.05515625 | P134: 7.182360124 | S134: 2026.2 | T134: 刘玉升
A135: Qwen3-14B | B135: 2 | C135: float16 | D135: 0.9.2 | E135: V0 | F135: 否 | G135: 16384 | H135: 1024 | I135: 1 | J135: 1872.01 | K135: 33.94 | L135: 27.98 | M135: 475.66 | N135: 36.6 | O135: 27.98 | P135: 29.46375958 | S135: 2026.2 | T135: 刘玉升
A136: Qwen3-14B | B136: 2 | C136: float16 | D136: 0.9.2 | E136: V0 | F136: 否 | G136: 16384 | H136: 1024 | I136: 4 | J136: 4982.29 | K136: 40.14 | L136: 88.95 | M136: 1512.12 | N136: 46.05 | O136: 22.2375 | P136: 24.91280518 | S136: 2026.2 | T136: 刘玉升
A137: Qwen3-14B | B137: 2 | C137: float16 | D137: 0.9.2 | E137: V0 | F137: 否 | G137: 16384 | H137: 1024 | I137: 8 | J137: 8739.92 | K137: 50.12 | L137: 136.5 | M137: 2320.54 | N137: 60.01 | O137: 17.0625 | P137: 19.95211492 | S137: 2026.2 | T137: 刘玉升
A138: Qwen3-14B | B138: 2 | C138: float16 | D138: 0.9.2 | E138: V0 | F138: 否 | G138: 16384 | H138: 1024 | I138: 16 | J138: 15924.08 | K138: 68.64 | L138: 190.18 | M138: 3233.1 | N138: 86.15 | O138: 11.88625 | P138: 14.56876457 | S138: 2026.2 | T138: 刘玉升
A139: Qwen3-14B | B139: 2 | C139: float16 | D139: 0.9.2 | E139: V0 | F139: 否 | G139: 16384 | H139: 1024 | I139: 32 | J139: 30109.77 | K139: 103.84 | L139: 240.31 | M139: 4085.35 | N139: 136.35 | O139: 7.5096875 | P139: 9.630200308 | S139: 2026.2 | T139: 刘玉升
A140: Qwen3-14B | B140: 2 | C140: float16 | D140: 0.9.2 | E140: V0 | F140: 否 | G140: 16384 | H140: 1024 | I140: 64 | J140: 98834.11 | K140: 105.45 | L140: 238.25 | M140: 4050.19 | N140: 275.08 | O140: 3.72265625 | P140: 9.483167378 | S140: 2026.2 | T140: 刘玉升
A141: Qwen3-14B | B141: 2 | C141: float16 | D141: 0.9.2 | E141: V0 | F141: 否 | G141: 16384 | H141: 1024 | I141: 128 | J141: 236536.93 | K141: 106.32 | L141: 237.71 | M141: 4041.03 | N141: 551.4 | O141: 1.857109375 | P141: 9.405568096 | S141: 2026.2 | T141: 刘玉升
A142: Qwen3-30B-A3B | B142: 2 | C142: float16 | D142: 0.9.2 | E142: V0 | F142: 否 | G142: 512 | H142: 512 | I142: 1 | J142: 92.05 | K142: 16.41 | L142: 60.38 | M142: 120.76 | N142: 8.48 | O142: 60.38 | P142: 60.93845216 | Q142: vllm:0.9.2-ubuntu22.04-dtk25.04.2-1226-das1.7-py3.10-20251226 | R142: Hygon C86 7490 64-core Processor*2 /DDR5 4800 64G*24 /480G 2.5 SATA 6Gb R SSD*2 /960G 2.5 SATA 6Gb R SSD*4/7.68T*4/BCM 9560-8i Tri-Mode RAID x1/双口1G RJ45网卡x1/DCU K100-AI x8(120CU)/MLX MCX653105A-HDAT 1-port 200G HDR QSFP56 HCA*1/2700W电源模块*4 | S142: 2026.02 | T142: 刘玉升
A143: Qwen3-30B-A3B | B143: 2 | C143: float16 | D143: 0.9.2 | E143: V0 | F143: 否 | G143: 512 | H143: 512 | I143: 4 | J143: 197.99 | K143: 25.72 | L143: 153.5 | M143: 307 | N143: 13.34 | O143: 38.375 | P143: 38.88024883 | S143: 2026.02 | T143: 刘玉升
A144: Qwen3-30B-A3B | B144: 2 | C144: float16 | D144: 0.9.2 | E144: V0 | F144: 否 | G144: 512 | H144: 512 | I144: 8 | J144: 941.99 | K144: 32.56 | L144: 232.95 | M144: 465.85 | N144: 17.58 | O144: 29.11875 | P144: 30.71253071 | S144: 2026.02 | T144: 刘玉升
A145: Qwen3-30B-A3B | B145: 2 | C145: float16 | D145: 0.9.2 | E145: V0 | F145: 否 | G145: 512 | H145: 512 | I145: 16 | J145: 706.86 | K145: 35.51 | L145: 434.4 | M145: 868.68 | N145: 18.86 | O145: 27.15 | P145: 28.16108139 | S145: 2026.02 | T145: 刘玉升
A146: Qwen3-30B-A3B | B146: 2 | C146: float16 | D146: 0.9.2 | E146: V0 | F146: 否 | G146: 512 | H146: 512 | I146: 32 | J146: 1497.39 | K146: 45.6 | L146: 660.45 | M146: 1320.81 | N146: 24.81 | O146: 20.6390625 | P146: 21.92982456 | S146: 2026.02 | T146: 刘玉升
A147: Qwen3-30B-A3B | B147: 2 | C147: float16 | D147: 0.9.2 | E147: V0 | F147: 否 | G147: 512 | H147: 512 | I147: 64 | J147: 2852.73 | K147: 64.49 | L147: 914.63 | M147: 1829.2 | N147: 35.83 | O147: 14.29109375 | P147: 15.50628004 | S147: 2026.02 | T147: 刘玉升
A148: Qwen3-30B-A3B | B148: 2 | C148: float16 | D148: 0.9.2 | E148: V0 | F148: 否 | G148: 512 | H148: 512 | I148: 128 | J148: 4581.51 | K148: 101.81 | L148: 1157.2 | M148: 2314 | N148: 56.63 | O148: 9.040625 | P148: 9.822217857 | S148: 2026.02 | T148: 刘玉升
A149: Qwen3-30B-A3B | B149: 2 | C149: float16 | D149: 0.9.2 | E149: V0 | F149: 否 | G149: 1024 | H149: 1024 | I149: 1 | J149: 106.99 | K149: 16.52 | L149: 60.21 | M149: 120.41 | N149: 17.01 | O149: 60.21 | P149: 60.53268765 | S149: 2026.02 | T149: 刘玉升
A150: Qwen3-30B-A3B | B150: 2 | C150: float16 | D150: 0.9.2 | E150: V0 | F150: 否 | G150: 1024 | H150: 1024 | I150: 4 | J150: 289.85 | K150: 24.37 | L150: 162.42 | M150: 324.84 | N150: 25.22 | O150: 40.605 | P150: 41.03405827 | S150: 2026.02 | T150: 刘玉升
A151: Qwen3-30B-A3B | B151: 2 | C151: float16 | D151: 0.9.2 | E151: V0 | F151: 否 | G151: 1024 | H151: 1024 | I151: 8 | J151: 634.13 | K151: 32.03 | L151: 245.21 | M151: 490.4 | N151: 33.41 | O151: 30.65125 | P151: 31.22073057 | S151: 2026.02 | T151: 刘玉升
A152: Qwen3-30B-A3B | B152: 2 | C152: float16 | D152: 0.9.2 | E152: V0 | F152: 否 | G152: 1024 | H152: 1024 | I152: 16 | J152: 1375.84 | K152: 34.87 | L152: 442.16 | M152: 883.78 | N152: 37.05 | O152: 27.635 | P152: 28.67794666 | S152: 2026.02 | T152: 刘玉升
A153: Qwen3-30B-A3B | B153: 2 | C153: float16 | D153: 0.9.2 | E153: V0 | F153: 否 | G153: 1024 | H153: 1024 | I153: 32 | J153: 2733.31 | K153: 47.11 | L153: 643.38 | M153: 1286.34 | N153: 50.93 | O153: 20.105625 | P153: 21.22691573 | S153: 2026.02 | T153: 刘玉升
A154: Qwen3-30B-A3B | B154: 2 | C154: float16 | D154: 0.9.2 | E154: V0 | F154: 否 | G154: 1024 | H154: 1024 | I154: 64 | J154: 4424.83 | K154: 65.5 | L154: 917.32 | M154: 1831.51 | N154: 71.44 | O154: 14.333125 | P154: 15.26717557 | S154: 2026.02 | T154: 刘玉升
A155: Qwen3-30B-A3B | B155: 2 | C155: float16 | D155: 0.9.2 | E155: V0 | F155: 否 | G155: 1024 | H155: 1024 | I155: 128 | J155: 7600.6 | K155: 102.84 | L155: 1161.6 | M155: 2320.31 | N155: 112.84 | O155: 9.075 | P155: 9.723842863 | S155: 2026.02 | T155: 刘玉升
A156: Qwen3-30B-A3B | B156: 2 | C156: float16 | D156: 0.9.2 | E156: V0 | F156: 否 | G156: 2048 | H156: 2048 | I156: 1 | J156: 171.16 | K156: 16.84 | L156: 59.11 | M156: 118.23 | N156: 34.64 | O156: 59.11 | P156: 59.3824228 | S156: 2026.02 | T156: 刘玉升
A157: Qwen3-30B-A3B | B157: 2 | C157: float16 | D157: 0.9.2 | E157: V0 | F157: 否 | G157: 2048 | H157: 2048 | I157: 4 | J157: 570.39 | K157: 24.37 | L157: 162.36 | M157: 324.72 | N157: 50.46 | O157: 40.59 | P157: 41.03405827 | S157: 2026.02 | T157: 刘玉升
A158: Qwen3-30B-A3B | B158: 2 | C158: float16 | D158: 0.9.2 | E158: V0 | F158: 否 | G158: 2048 | H158: 2048 | I158: 8 | J158: 1290.4 | K158: 29.19 | L158: 268.35 | M158: 535.9 | N158: 61.05 | O158: 33.54375 | P158: 34.25830764 | S158: 2026.02 | T158: 刘玉升
A159: Qwen3-30B-A3B | B159: 2 | C159: float16 | D159: 0.9.2 | E159: V0 | F159: 否 | G159: 2048 | H159: 2048 | I159: 16 | J159: 2809.76 | K159: 33.53 | L159: 458.57 | M159: 914.09 | N159: 71.46 | O159: 28.660625 | P159: 29.82403817 | S159: 2026.02 | T159: 刘玉升
A160: Qwen3-30B-A3B | B160: 2 | C160: float16 | D160: 0.9.2 | E160: V0 | F160: 否 | G160: 2048 | H160: 2048 | I160: 32 | J160: 4499.97 | K160: 43.58 | L160: 699.22 | M160: 1395.54 | N160: 93.73 | O160: 21.850625 | P160: 22.94630564 | S160: 2026.02 | T160: 刘玉升
A161: Qwen3-30B-A3B | B161: 2 | C161: float16 | D161: 0.9.2 | E161: V0 | F161: 否 | G161: 2048 | H161: 2048 | I161: 64 | J161: 7579.39 | K161: 63.24 | L161: 956.34 | M161: 1908.53 | N161: 137.06 | O161: 14.9428125 | P161: 15.81277672 | S161: 2026.02 | T161: 刘玉升
A162: Qwen3-30B-A3B | B162: 2 | C162: float16 | D162: 0.9.2 | E162: V0 | F162: 否 | G162: 2048 | H162: 2048 | I162: 128 | J162: 13830.81 | K162: 101.79 | L162: 1179.57 | M162: 2355.32 | N162: 222.24 | O162: 9.215390625 | P162: 9.824147755 | S162: 2026.02 | T162: 刘玉升
A163: Qwen3-30B-A3B | B163: 2 | C163: float16 | D163: 0.9.2 | E163: V0 | F163: 否 | G163: 4096 | H163: 1024 | I163: 1 | J163: 362.93 | K163: 16.83 | L163: 58.26 | M163: 291.28 | N163: 17.58 | O163: 58.26 | P163: 59.41770648 | S163: 2026.02 | T163: 刘玉升
A164: Qwen3-30B-A3B | B164: 2 | C164: float16 | D164: 0.9.2 | E164: V0 | F164: 否 | G164: 4096 | H164: 1024 | I164: 4 | J164: 1185.02 | K164: 24.84 | L164: 153.98 | M164: 769.58 | N164: 26.6 | O164: 38.495 | P164: 40.25764895 | S164: 2026.02 | T164: 刘玉升
A165: Qwen3-30B-A3B | B165: 2 | C165: float16 | D165: 0.9.2 | E165: V0 | F165: 否 | G165: 4096 | H165: 1024 | I165: 8 | J165: 2670.62 | K165: 28.6 | L165: 256.56 | M165: 1282.53 | N165: 31.93 | O165: 32.07 | P165: 34.96503497 | S165: 2026.02 | T165: 刘玉升
A166: Qwen3-30B-A3B | B166: 2 | C166: float16 | D166: 0.9.2 | E166: V0 | F166: 否 | G166: 4096 | H166: 1024 | I166: 16 | J166: 4493.31 | K166: 36.8 | L166: 388.74 | M166: 1940.07 | N166: 42.15 | O166: 24.29625 | P166: 27.17391304 | S166: 2026.02 | T166: 刘玉升
A167: Qwen3-30B-A3B | B167: 2 | C167: float16 | D167: 0.9.2 | E167: V0 | F167: 否 | G167: 4096 | H167: 1024 | I167: 32 | J167: 7706.86 | K167: 51.35 | L167: 543.93 | M167: 2717.09 | N167: 60.24 | O167: 16.9978125 | P167: 19.47419669 | S167: 2026.02 | T167: 刘玉升
A168: Qwen3-30B-A3B | B168: 2 | C168: float16 | D168: 0.9.2 | E168: V0 | F168: 否 | G168: 4096 | H168: 1024 | I168: 64 | J168: 14045.95 | K168: 78.32 | L168: 695.83 | M168: 3474.61 | N168: 94.18 | O168: 10.87234375 | P168: 12.76813075 | S168: 2026.02 | T168: 刘玉升
A169: Qwen3-30B-A3B | B169: 2 | C169: float16 | D169: 0.9.2 | E169: V0 | F169: 否 | G169: 4096 | H169: 1024 | I169: 128 | J169: 26695.8 | K169: 129.09 | L169: 817.86 | M169: 4084.4 | N169: 160.26 | O169: 6.38953125 | P169: 7.746533426 | S169: 2026.02 | T169: 刘玉升
A170: Qwen3-30B-A3B | B170: 2 | C170: float16 | D170: 0.9.2 | E170: V0 | F170: 否 | G170: 16384 | H170: 1024 | I170: 1 | J170: 1942.13 | K170: 17.14 | L170: 52.57 | M170: 893.68 | N170: 19.48 | O170: 52.57 | P170: 58.34305718 | S170: 2026.02 | T170: 刘玉升
A171: Qwen3-30B-A3B | B171: 2 | C171: float16 | D171: 0.9.2 | E171: V0 | F171: 否 | G171: 16384 | H171: 1024 | I171: 4 | J171: 5070.3 | K171: 27.79 | L171: 122.27 | M171: 2078.52 | N171: 33.5 | O171: 30.5675 | P171: 35.98416697 | S171: 2026.02 | T171: 刘玉升
A172: Qwen3-30B-A3B | B172: 2 | C172: float16 | D172: 0.9.2 | E172: V0 | F172: 否 | G172: 16384 | H172: 1024 | I172: 8 | J172: 9032.04 | K172: 39.81 | L172: 164.61 | M172: 2798.35 | N172: 49.77 | O172: 20.57625 | P172: 25.11931675 | S172: 2026.02 | T172: 刘玉升
A173: Qwen3-30B-A3B | B173: 2 | C173: float16 | D173: 0.9.2 | E173: V0 | F173: 否 | G173: 16384 | H173: 1024 | I173: 16 | J173: 16643.73 | K173: 56.07 | L173: 221.37 | M173: 3763.28 | N173: 74.01 | O173: 13.835625 | P173: 17.8348493 | S173: 2026.02 | T173: 刘玉升
A174: Qwen3-30B-A3B | B174: 2 | C174: float16 | D174: 0.9.2 | E174: V0 | F174: 否 | G174: 16384 | H174: 1024 | I174: 32 | J174: 31503.5 | K174: 89.69 | L174: 265.81 | M174: 4518.73 | N174: 123.28 | O174: 8.3065625 | P174: 11.149515 | S174: 2026.02 | T174: 刘玉升
A175: Qwen3-30B-A3B | B175: 2 | C175: float16 | D175: 0.9.2 | E175: V0 | F175: 否 | G175: 16384 | H175: 1024 | I175: 64 | J175: 91078.64 | K175: 97.02 | L175: 257.13 | M175: 4371.28 | N175: 254.87 | O175: 4.01765625 | P175: 10.30715316 | S175: 2026.02 | T175: 刘玉升
A176: Qwen3-30B-A3B | B176: 2 | C176: float16 | D176: 0.9.2 | E176: V0 | F176: 否 | G176: 16384 | H176: 1024 | I176: 128 | J176: 210949.74 | K176: 99.87 | L176: 260.84 | M176: 4434.2 | N176: 502.51 | O176: 2.0378125 | P176: 10.01301692 | S176: 2026.02 | T176: 刘玉升
A177: Qwen3-30B-A3B | B177: 4 | C177: float16 | D177: 0.9.2 | E177: V0 | F177: 否 | G177: 512 | H177: 512 | I177: 1 | J177: 91.02 | K177: 15.26 | L177: 64.89 | M177: 129.78 | N177: 7.89 | O177: 64.89 | P177: 65.53079948 | S177: 2026.02 | T177: 刘玉升
A178: Qwen3-30B-A3B | B178: 4 | C178: float16 | D178: 0.9.2 | E178: V0 | F178: 否 | G178: 512 | H178: 512 | I178: 4 | J178: 178.7 | K178: 19.93 | L178: 197.61 | M178: 395.22 | N178: 10.36 | O178: 49.4025 | P178: 50.17561465 | S178: 2026.02 | T178: 刘玉升
A179: Qwen3-30B-A3B | B179: 4 | C179: float16 | D179: 0.9.2 | E179: V0 | F179: 否 | G179: 512 | H179: 512 | I179: 8 | J179: 785.68 | K179: 27.45 | L179: 276.43 | M179: 552.79 | N179: 14.82 | O179: 34.55375 | P179: 36.4298725 | S179: 2026.02 | T179: 刘玉升
A180: Qwen3-30B-A3B | B180: 4 | C180: float16 | D180: 0.9.2 | E180: V0 | F180: 否 | G180: 512 | H180: 512 | I180: 16 | J180: 492.18 | K180: 29.31 | L180: 529.37 | M180: 1058.6 | N180: 15.48 | O180: 33.085625 | P180: 34.11804845 | S180: 2026.02 | T180: 刘玉升
A181: Qwen3-30B-A3B | B181: 4 | C181: float16 | D181: 0.9.2 | E181: V0 | F181: 否 | G181: 512 | H181: 512 | I181: 32 | J181: 974.88 | K181: 35.06 | L181: 866.9 | M181: 1733.7 | N181: 18.9 | O181: 27.090625 | P181: 28.5225328 | S181: 2026.02 | T181: 刘玉升
A182: Qwen3-30B-A3B | B182: 4 | C182: float16 | D182: 0.9.2 | E182: V0 | F182: 否 | G182: 512 | H182: 512 | I182: 64 | J182: 1841.55 | K182: 45.74 | L182: 1298.85 | M182: 2597.63 | N182: 25.23 | O182: 20.29453125 | P182: 21.86270223 | S182: 2026.02 | T182: 刘玉升
A183: Qwen3-30B-A3B | B183: 4 | C183: float16 | D183: 0.9.2 | E183: V0 | F183: 否 | G183: 512 | H183: 512 | I183: 128 | J183: 2881.03 | K183: 68.58 | L183: 1726.78 | M183: 3452.96 | N183: 37.95 | O183: 13.49046875 | P183: 14.58151064 | S183: 2026.02 | T183: 刘玉升
A184: Qwen3-30B-A3B | B184: 4 | C184: float16 | D184: 0.9.2 | E184: V0 | F184: 否 | G184: 1024 | H184: 1024 | I184: 1 | J184: 92 | K184: 15.22 | L184: 65.4 | M184: 130.79 | N184: 15.66 | O184: 65.4 | P184: 65.70302234 | S184: 2026.02 | T184: 刘玉升
A185: Qwen3-30B-A3B | B185: 4 | C185: float16 | D185: 0.9.2 | E185: V0 | F185: 否 | G185: 1024 | H185: 1024 | I185: 4 | J185: 220.41 | K185: 19.63 | L185: 201.75 | M185: 403.49 | N185: 20.3 | O185: 50.4375 | P185: 50.94243505 | S185: 2026.02 | T185: 刘玉升
A186: Qwen3-30B-A3B | B186: 4 | C186: float16 | D186: 0.9.2 | E186: V0 | F186: 否 | G186: 1024 | H186: 1024 | I186: 8 | J186: 436.1 | K186: 27.06 | L186: 291.3 | M186: 582.56 | N186: 28.12 | O186: 36.4125 | P186: 36.954915 | S186: 2026.02 | T186: 刘玉升
A187: Qwen3-30B-A3B | B187: 4 | C187: float16 | D187: 0.9.2 | E187: V0 | F187: 否 | G187: 1024 | H187: 1024 | I187: 16 | J187: 906.28 | K187: 30.05 | L187: 517.59 | M187: 1034.54 | N187: 31.65 | O187: 32.349375 | P187: 33.27787022 | S187: 2026.02 | T187: 刘玉升
A188: Qwen3-30B-A3B | B188: 4 | C188: float16 | D188: 0.9.2 | E188: V0 | F188: 否 | G188: 1024 | H188: 1024 | I188: 32 | J188: 1654.93 | K188: 35.6 | L188: 860.32 | M188: 1720.1 | N188: 38.09 | O188: 26.885 | P188: 28.08988764 | S188: 2026.02 | T188: 刘玉升
A189: Qwen3-30B-A3B | B189: 4 | C189: float16 | D189: 0.9.2 | E189: V0 | F189: 否 | G189: 1024 | H189: 1024 | I189: 64 | J189: 2818.49 | K189: 46.87 | L189: 1290.37 | M189: 2576.35 | N189: 50.79 | O189: 20.16203125 | P189: 21.33560913 | S189: 2026.02 | T189: 刘玉升
A190: Qwen3-30B-A3B | B190: 4 | C190: float16 | D190: 0.9.2 | E190: V0 | F190: 否 | G190: 1024 | H190: 1024 | I190: 128 | J190: 4735.12 | K190: 69.31 | L190: 1732.13 | M190: 3459.95 | N190: 75.67 | O190: 13.53226563 | P190: 14.42793248 | S190: 2026.02 | T190: 刘玉升
A191: Qwen3-30B-A3B | B191: 4 | C191: float16 | D191: 0.9.2 | E191: V0 | F191: 否 | G191: 2048 | H191: 2048 | I191: 1 | J191: 133.04 | K191: 15.44 | L191: 64.52 | M191: 129.05 | N191: 31.74 | O191: 64.52 | P191: 64.76683938 | S191: 2026.02 | T191: 刘玉升
A192: Qwen3-30B-A3B | B192: 4 | C192: float16 | D192: 0.9.2 | E192: V0 | F192: 否 | G192: 2048 | H192: 2048 | I192: 4 | J192: 394.66 | K192: 19.52 | L192: 203.05 | M192: 406.09 | N192: 40.35 | O192: 50.7625 | P192: 51.2295082 | S192: 2026.02 | T192: 刘玉升
A193: Qwen3-30B-A3B | B193: 4 | C193: float16 | D193: 0.9.2 | E193: V0 | F193: 否 | G193: 2048 | H193: 2048 | I193: 8 | J193: 838.15 | K193: 26.28 | L193: 299.92 | M193: 598.94 | N193: 54.63 | O193: 37.49 | P193: 38.05175038 | S193: 2026.02 | T193: 刘玉升
A194: Qwen3-30B-A3B | B194: 4 | C194: float16 | D194: 0.9.2 | E194: V0 | F194: 否 | G194: 2048 | H194: 2048 | I194: 16 | J194: 1780.75 | K194: 28.39 | L194: 546.99 | M194: 1090.35 | N194: 59.91 | O194: =L194/I194 -> 34.186875 | P194: =1000/K194 -> 35.22367031 | S194: 2026.02 | T194: 刘玉升
A195: Qwen3-30B-A3B | B195: 4 | C195: float16 | D195: 0.9.2 | E195: V0 | F195: 否 | G195: 2048 | H195: 2048 | I195: 32 | J195: 2784.26 | K195: 34 | L195: 905.35 | M195: 1806.94 | N195: 72.39 | O195: 28.2921875 | P195: 29.41176471 | S195: 2026.02 | T195: 刘玉升
A196: Qwen3-30B-A3B | B196: 4 | C196: float16 | D196: 0.9.2 | E196: V0 | F196: 否 | G196: 2048 | H196: 2048 | I196: 64 | J196: 5027.68 | K196: 46.08 | L196: 1319.02 | M196: 2632.3 | N196: 99.37 | O196: 20.6096875 | P196: 21.70138889 | S196: 2026.02 | T196: 刘玉升
A197: Qwen3-30B-A3B | B197: 4 | C197: float16 | D197: 0.9.2 | E197: V0 | F197: 否 | G197: 2048 | H197: 2048 | I197: 128 | J197: 8508.42 | K197: 69.3 | L197: 1742.94 | M197: 3480.23 | N197: 150.4 | O197: 13.61671875 | P197: 14.43001443 | S197: 2026.02 | T197: 刘玉升
A198: Qwen3-30B-A3B | B198: 4 | C198: float16 | D198: 0.9.2 | E198: V0 | F198: 否 | G198: 4096 | H198: 1024 | I198: 1 | J198: 234.54 | K198: 15.52 | L198: 63.54 | M198: 317.68 | N198: 16.12 | O198: 63.54 | P198: 64.43298969 | S198: 2026.02 | T198: 刘玉升
A199: Qwen3-30B-A3B | B199: 4 | C199: float16 | D199: 0.9.2 | E199: V0 | F199: 否 | G199: 4096 | H199: 1024 | I199: 4 | J199: 763.8 | K199: 19.84 | L199: 194.47 | M199: 971.98 | N199: 21.06 | O199: 48.6175 | P199: 50.40322581 | S199: 2026.02 | T199: 刘玉升
A200: Qwen3-30B-A3B | B200: 4 | C200: float16 | D200: 0.9.2 | E200: V0 | F200: 否 | G200: 4096 | H200: 1024 | I200: 8 | J200: 1659.45 | K200: 26.71 | L200: 282.66 | M200: 1413.01 | N200: 28.98 | O200: 35.3325 | P200: 37.43916136 | S200: 2026.02 | T200: 刘玉升
... 811 more rows
